Workbook

Sheet RELEVÉS
A1: 08:48:00 | K1: L | N1: R | Q1: W | AL1: AJ | AO1: AK | AV1: BA
B2: Pression mini | E2: Pression maxi | H2: Température ressentie | K2: Température mini | N2: Température maxi | Q2: Vent en Km/h | AB2: Humidité H% | AL2: Pluie | AO2: Temps de pluie | AV2: Sonde Soleil
B3: mini | D3: heure | E3: maxi | G3: heure | H3: mini | J3: heure | K3: mini | M3: heure | N3: maxi | P3: heure | Q3: maxi | S3: Heure | U3: Moyenne | X3: Sens | Z3: Sens | AB3: Mini | AD3: Heure | AF3: Maxi | AH3: Heure | AJ3: Moy | AK3: mm | AM3: Heure | AO3: AK | AV3: =W1450/60/1440 -> 0.1986111111
AO4: 0 à 7h | AQ4: 7 à 12h | AS4: 12 à 19h | AU4: 19h à 24h
B5: =MIN(H9:H1448) -> 0 | D5: =VLOOKUP($B5,$H$9:$Q$1448,10,0) -> 00:00:00 | E5: =MAX(H9:H1448) -> 54867 | G5: =VLOOKUP($E5,$H$9:$Q$1448,10,0) -> 13:17:00 | H5: =MAX($D$9:$D$1448) -> 13.1 | J5: =VLOOKUP($H5,$D$9:$Q$1448,14,0) -> 12:55:00 | K5: =MIN($B$9:$B$1448) -> 1.6 | M5: =VLOOKUP($K5,$B$9:$Q$1448,16,0) -> 08:07:00 | N5: =MAX(B9:B1448) -> 13.1 | P5: =VLOOKUP($N5,$B$9:$Q$1448,16,0) -> 12:55:00 | Q5: =MAX(E9:F1448) -> 11.2 | S5: =VLOOKUP($Q5,$F$9:$Q$1448,12,0) -> 11:43:00 | U5: =AVERAGE(F9:F1448) -> 1.40392638 | Z5: ONO | AB5: =MIN(C9:C1448) -> 73 | AD5: =VLOOKUP($AB5,$C$9:$Q$1448,15,0) -> 12:23:00 | AF5: =MAX(C9:C1448) -> 99 | AH5: =VLOOKUP($AF5,$C$9:$Q$1448,15,0) -> 01:30:00 | AJ5: =AVERAGE(C9:C1448) -> 93.79386503 | AK5: =MAX(K9:K1448) -> 0 | AM5: =(U1450/60)/1440 -> 00:00:00 | AO5: =AO6+AQ6 -> 00:00:00 | AS5: =AS6+AU6 -> 00:00:00
AO6: =SUM(U9:U428)/60/1440 -> 00:00:00 | AQ6: =SUM(U429:U728)/60/1440 -> 00:00:00 | AS6: =SUM(U729:U1148)/60/1440 -> 00:00:00 | AU6: =SUM(U1148:U1448)/60/1440 -> 00:00:00
E7: =MAX(E9:E1448) -> 8.6 | H7: =MAX(H9:H1448) -> 54867 | I7: =MAX(I11:I1448) -> 4 | X7: Début
B8: T° Ext | C8: H% Ext | D8: Ressentie | E8: Vent | F8: Rafale | G8: Pression | H8: Luminosité | I8: Uv | J8: Pluie 1h | K8: Jour | L8: Semaine | M8: Mois | N8: Année | O8: CH1 | P8: CH2 | Q8: Heures | R8: Date | S8: Maxi | T8: Graph | U8: Pluie | W8: Soleil | X8: Fin | Z8: Soleil
B9: 4.3 | C9: 98 | D9: 4.3 | E9: 0 | F9: 0 | G9: 1029.6 | H9: 0 | I9: 0 | J9: 0 | K9: 0 | L9: 0 | M9: 1.5 | N9: 112.2 | O9: 2.4 | Q9: 00:00:00 | R9: 20230220 | Z9: N | AD9: 0 | AE9: 0
B10: 4.2 | C10: 98 | D10: 4.2 | E10: 0 | F10: 0 | G10: 1029.6 | H10: 0 | I10: 0 | J10: 0 | K10: 0 | L10: 0 | M10: 1.5 | N10: 112.2 | O10: 2.4 | Q10: 00:01:00 | U10: =IF(J10>0,60,"") ->  | Z10: N | AB10: 0 | AD10: 11 | AE10: 22
B11: 4.2 | C11: 98 | D11: 4.2 | E11: 0 | F11: 0 | G11: 1029.4 | H11: 0 | I11: 0 | J11: 0 | K11: 0 | L11: 0 | M11: 1.5 | N11: 112.2 | O11: 2.4 | Q11: 00:02:00 | U11: =IF(J11>0,60,"") ->  | Z11: NNE | AB11: 22.5 | AD11: =AB11+$AD$10 -> 33.5 | AE11: 45 | AM11: Aide mémoire
B12: 4.2 | C12: 98 | D12: 4.2 | E12: 0 | F12: 0 | G12: 1029.4 | H12: 0 | I12: 0 | J12: 0 | K12: 0 | L12: 0 | M12: 1.5 | N12: 112.2 | O12: 2.3 | Q12: 00:03:00 | Z12: NE | AB12: 45 | AD12: 56 | AE12: 67 | AK12: Pluie | AM12: =SOMME(K9:K1448)
B13: 4.2 | C13: 98 | D13: 4.2 | E13: 0 | F13: 0 | G13: 1029.4 | H13: 0 | I13: 0 | J13: 0 | K13: 0 | L13: 0 | M13: 1.5 | N13: 112.2 | O13: 2.3 | Q13: 00:04:00 | Z13: ENE | AB13: 67.5 | AD13: 78.5 | AE13: 90 | AJ13: AK | AM13: =MAX(K9:K1448)
B14: 4.1 | C14: 98 | D14: 4.1 | E14: 0 | F14: 0 | G14: 1029.6 | H14: 0 | I14: 0 | J14: 0 | K14: 0 | L14: 0 | M14: 1.5 | N14: 112.2 | O14: 2.3 | Q14: 00:05:00 | AB14: 90 | AD14: 101 | AE14: 112 | AK14: Commentaires | AO14: =SOMME(U9:U1448)
B15: 4.1 | C15: 98 | D15: 4.1 | E15: 0 | F15: 0 | G15: 1029.6 | H15: 0 | I15: 0 | J15: 0 | K15: 0 | L15: 0 | M15: 1.5 | N15: 112.2 | O15: 2.3 | Q15: 00:06:00 | Z15: ESE | AB15: 112.5 | AD15: 123.5 | AE15: 135
B16: 4.1 | C16: 98 | D16: 4.1 | E16: 0 | F16: 0 | G16: 1029.5 | H16: 0 | I16: 0 | J16: 0 | K16: 0 | L16: 0 | M16: 1.5 | N16: 112.2 | O16: 2.3 | Q16: 00:07:00 | Z16: SSE | AB16: 135 | AD16: 146 | AE16: 157 | AK16: Soleil | AM16: =SOMME(W9:W1448)
B17: 4.1 | C17: 98 | D17: 4.1 | E17: 0 | F17: 0 | G17: 1029.5 | H17: 0 | I17: 0 | J17: 0 | K17: 0 | L17: 0 | M17: 1.5 | N17: 112.2 | O17: 2.3 | Q17: 00:08:00 | Z17: SE | AB17: 157.5 | AD17: 168.5 | AE17: 180 | AJ17: AV3 | AK17: Soleil | AM17: =W1450/60/1440
B18: 4.1 | C18: 98 | D18: 4.1 | E18: 0 | F18: 0 | G18: 1029.8 | H18: 0 | I18: 0 | J18: 0 | K18: 0 | L18: 0 | M18: 1.5 | N18: 112.2 | O18: 2.3 | Q18: 00:09:00 | Z18: S | AB18: 180 | AD18: 191 | AE18: 202
B19: 4.1 | C19: 98 | D19: 4.1 | E19: 0 | F19: 0 | G19: 1029.3 | H19: 0 | I19: 0 | J19: 0 | K19: 0 | L19: 0 | M19: 1.5 | N19: 112.2 | O19: 2.3 | Q19: 00:10:00 | Z19: SSO | AB19: 202.5 | AD19: 213.5 | AE19: 225 | AK19: Vues
B20: 4.1 | C20: 98 | D20: 4.1 | E20: 0 | F20: 0 | G20: 1029.5 | H20: 0 | I20: 0 | J20: 0 | K20: 0 | L20: 0 | M20: 1.5 | N20: 112.2 | O20: 2.3 | Q20: 00:11:00 | Z20: SO | AB20: 225 | AD20: 236 | AE20: 247 | AJ20: 2023-01-22 | AK20: 104
B21: 4.1 | C21: 98 | D21: 4.1 | E21: 0 | F21: 0 | G21: 1029.3 | H21: 0 | I21: 0 | J21: 0 | K21: 0 | L21: 0 | M21: 1.5 | N21: 112.2 | O21: 2.3 | Q21: 00:12:00 | Z21: OSO | AB21: 247.5 | AD21: 258.5 | AE21: 270 | AJ21: 2023-01-28 | AK21: 128 | AM21: =AK21-AK20 -> 24
B22: 4.1 | C22: 98 | D22: 4.1 | E22: 0 | F22: 0 | G22: 1029.4 | H22: 0 | I22: 0 | J22: 0 | K22: 0 | L22: 0 | M22: 1.5 | N22: 112.2 | O22: 2.3 | Q22: 00:13:00 | Z22: O | AB22: 270 | AD22: 281 | AE22: 292 | AJ22: 2023-02-05 | AK22: 152 | AM22: =AK22-AK21 -> 24
B23: 4.1 | C23: 98 | D23: 4.1 | E23: 0 | F23: 0 | G23: 1029.5 | H23: 0 | I23: 0 | J23: 0 | K23: 0 | L23: 0 | M23: 1.5 | N23: 112.2 | O23: 2.3 | Q23: 00:14:00 | Z23: ONO | AB23: 292.5 | AD23: 303.5 | AE23: 315 | AI23: 1900-01-23 | AJ23: 2023-02-12 | AK23: 193 | AL23: =AJ23-AJ22 -> 7 | AM23: =AK23-AK22 -> 41
B24: 4.1 | C24: 98 | D24: 4.1 | E24: 0 | F24: 0 | G24: 1029.6 | H24: 0 | I24: 0 | J24: 0 | K24: 0 | L24: 0 | M24: 1.5 | N24: 112.2 | O24: 2.3 | Q24: 00:15:00 | Z24: NO | AB24: 315 | AD24: 326 | AE24: 337 | AI24: 2022-11-27 | AL24: -44969
B25: 4.2 | C25: 98 | D25: 4.2 | E25: 0 | F25: 0 | G25: 1029.6 | H25: 0 | I25: 0 | J25: 0 | K25: 0 | L25: 0 | M25: 1.5 | N25: 112.2 | O25: 2.3 | Q25: 00:16:00 | U25: =IF(J25>0,60,"") ->  | Z25: NNO | AB25: 337.5 | AD25: 348.5 | AE25: 349 | AI25: 2022-12-06 | AL25: 0
B26: 4.2 | C26: 98 | D26: 4.2 | E26: 0 | F26: 0 | G26: 1029.6 | H26: 0 | I26: 0 | J26: 0 | K26: 0 | L26: 0 | M26: 1.5 | N26: 112.2 | O26: 2.3 | Q26: 00:17:00 | Z26: N | AB26: 349 | AD26: 360 | AI26: 2022-12-12 | AL26: 0
B27: 4.2 | C27: 98 | D27: 4.2 | E27: 0 | F27: 0 | G27: 1029.5 | H27: 0 | I27: 0 | J27: 0 | K27: 0 | L27: 0 | M27: 1.5 | N27: 112.2 | O27: 2.3 | Q27: 00:18:00 | AI27: 2022-12-18 | AL27: 0
B28: 4.2 | C28: 98 | D28: 4.2 | E28: 0 | F28: 0 | G28: 1029.5 | H28: 0 | I28: 0 | J28: 0 | K28: 0 | L28: 0 | M28: 1.5 | N28: 112.2 | O28: 2.4 | Q28: 00:19:00 | AD28: =INDEX($Z$9:$Z$26,IF(ISNA(MATCH($AD$30,$AD$9:$AD$26,0)),MATCH($AD$30,$AD$9:$AD$26,1)+1,MATCH($AD$30,$AD$9:$AD$26,0)),1) ->  | AI28: 2022-12-27 | AL28: 0
B29: 4.1 | C29: 98 | D29: 4.1 | E29: 0 | F29: 0 | G29: 1029.4 | H29: 0 | I29: 0 | J29: 0 | K29: 0 | L29: 0 | M29: 1.5 | N29: 112.2 | O29: 2.4 | Q29: 00:20:00 | AB29: =SUM(AB32:AB47) ->  | AD29: =MAX(AB32:AB47) ->  | AF29: =SUM(AF32:AF47) -> 0 | AI29: 2023-12-31 | AL29: 0
B30: 4.1 | C30: 98 | D30: 4.1 | E30: 0 | F30: 0 | G30: 1029.5 | H30: 0 | I30: 0 | J30: 0 | K30: 0 | L30: 0 | M30: 1.5 | N30: 112.2 | O30: 2.4 | Q30: 00:21:00 | AD30: =VLOOKUP(AD29,AB32:AD47,AD31,0) -> 
B31: 4.1 | C31: 98 | D31: 4.1 | E31: 0 | F31: 0 | G31: 1029.3 | H31: 0 | I31: 0 | J31: 0 | K31: 0 | L31: 0 | M31: 1.5 | N31: 112.2 | O31: 2.4 | Q31: 00:22:00 | AD31: 3
B32: 4.1 | C32: 98 | D32: 4.1 | E32: 0 | F32: 0 | G32: 1029.4 | H32: 0 | I32: 0 | J32: 0 | K32: 0 | L32: 0 | M32: 1.5 | N32: 112.2 | O32: 2.5 | Q32: 00:23:00 | AB32: =AF32/$AF$29 ->  | AD32: 0 | AF32: =COUNTIF($G$9:$G$1448,AD32) -> 0
B33: 4.1 | C33: 98 | D33: 4.1 | E33: 0 | F33: 0 | G33: 1029.3 | H33: 0 | I33: 0 | J33: 0 | K33: 0 | L33: 0 | M33: 1.5 | N33: 112.2 | O33: 2.5 | Q33: 00:24:00 | AB33: =AF33/$AF$29 ->  | AD33: 22 | AF33: =COUNTIF($G$9:$G$1448,AD33) -> 0
B34: 4.1 | C34: 98 | D34: 4.1 | E34: 0 | F34: 0 | G34: 1029.6 | H34: 0 | I34: 0 | J34: 0 | K34: 0 | L34: 0 | M34: 1.5 | N34: 112.2 | O34: 2.5 | Q34: 00:25:00 | AB34: =AF34/$AF$29 ->  | AD34: 45 | AF34: 0
B35: 4.1 | C35: 98 | D35: 4.1 | E35: 0 | F35: 0 | G35: 1029.3 | H35: 0 | I35: 0 | J35: 0 | K35: 0 | L35: 0 | M35: 1.5 | N35: 112.2 | O35: 2.5 | Q35: 00:26:00 | AD35: 67 | AF35: =COUNTIF($G$9:$G$1448,AD35) -> 0
B36: 4.1 | C36: 98 | D36: 4.1 | E36: 0 | F36: 0 | G36: 1029.3 | H36: 0 | I36: 0 | J36: 0 | K36: 0 | L36: 0 | M36: 1.5 | N36: 112.2 | O36: 2.5 | Q36: 00:27:00 | AD36: 90 | AF36: 0
B37: 4.1 | C37: 98 | D37: 4.1 | E37: 0 | F37: 0 | G37: 1029.4 | H37: 0 | I37: 0 | J37: 0 | K37: 0 | L37: 0 | M37: 1.5 | N37: 112.2 | O37: 2.5 | Q37: 00:28:00 | AD37: 112 | AF37: 0
B38: 4.1 | C38: 98 | D38: 4.1 | E38: 0 | F38: 0 | G38: 1029.3 | H38: 0 | I38: 0 | J38: 0 | K38: 0 | L38: 0 | M38: 1.5 | N38: 112.2 | O38: 2.5 | Q38: 00:29:00 | AD38: 135 | AF38: 0
B39: 4.1 | C39: 98 | D39: 4.1 | E39: 0 | F39: 0 | G39: 1029.3 | H39: 0 | I39: 0 | J39: 0 | K39: 0 | L39: 0 | M39: 1.5 | N39: 112.2 | O39: 2.5 | Q39: 00:30:00 | AD39: 157 | AF39: 0
B40: 4.1 | C40: 98 | D40: 4.1 | E40: 0 | F40: 0 | G40: 1029.2 | H40: 0 | I40: 0 | J40: 0 | K40: 0 | L40: 0 | M40: 1.5 | N40: 112.2 | O40: 2.5 | Q40: 00:31:00 | AD40: 180 | AF40: 0
B41: 4.1 | C41: 98 | D41: 4.1 | E41: 0 | F41: 0 | G41: 1029.3 | H41: 0 | I41: 0 | J41: 0 | K41: 0 | L41: 0 | M41: 1.5 | N41: 112.2 | O41: 2.5 | Q41: 00:32:00 | AD41: 202 | AF41: 0
B42: 4.3 | C42: 98 | D42: 4.3 | E42: 0 | F42: 0 | G42: 1029.4 | H42: 0 | I42: 0 | J42: 0 | K42: 0 | L42: 0 | M42: 1.5 | N42: 112.2 | O42: 2.5 | Q42: 00:33:00 | AD42: 225 | AF42: 0
B43: 4.3 | C43: 98 | D43: 4.3 | E43: 0 | F43: 0 | G43: 1029.3 | H43: 0 | I43: 0 | J43: 0 | K43: 0 | L43: 0 | M43: 1.5 | N43: 112.2 | O43: 2.5 | Q43: 00:34:00 | AD43: 247 | AF43: 0
B44: 4.3 | C44: 98 | D44: 4.3 | E44: 0 | F44: 0 | G44: 1029.3 | H44: 0 | I44: 0 | J44: 0 | K44: 0 | L44: 0 | M44: 1.5 | N44: 112.2 | O44: 2.6 | Q44: 00:35:00 | AD44: 270 | AF44: 0
B45: 4.3 | C45: 98 | D45: 4.3 | E45: 0 | F45: 0 | G45: 1029.2 | H45: 0 | I45: 0 | J45: 0 | K45: 0 | L45: 0 | M45: 1.5 | N45: 112.2 | O45: 2.6 | Q45: 00:36:00 | AD45: 292 | AF45: 0
B46: 4.3 | C46: 98 | D46: 4.3 | E46: 0 | F46: 0 | G46: 1029.4 | H46: 0 | I46: 0 | J46: 0 | K46: 0 | L46: 0 | M46: 1.5 | N46: 112.2 | O46: 2.6 | Q46: 00:37:00 | AD46: 315 | AF46: 0
B47: 4.3 | C47: 98 | D47: 4.3 | E47: 0 | F47: 0 | G47: 1029.4 | H47: 0 | I47: 0 | J47: 0 | K47: 0 | L47: 0 | M47: 1.5 | N47: 112.2 | O47: 2.6 | Q47: 00:38:00 | AD47: 337 | AF47: 0
B48: 4.2 | C48: 98 | D48: 4.2 | E48: 0 | F48: 0 | G48: 1029.5 | H48: 0 | I48: 0 | J48: 0 | K48: 0 | L48: 0 | M48: 1.5 | N48: 112.2 | O48: 2.6 | Q48: 00:39:00
B49: 4.2 | C49: 98 | D49: 4.2 | E49: 0 | F49: 0 | G49: 1029.3 | H49: 0 | I49: 0 | J49: 0 | K49: 0 | L49: 0 | M49: 1.5 | N49: 112.2 | O49: 2.6 | Q49: 00:40:00
B50: 4.2 | C50: 98 | D50: 4.2 | E50: 0 | F50: 0 | G50: 1029.2 | H50: 0 | I50: 0 | J50: 0 | K50: 0 | L50: 0 | M50: 1.5 | N50: 112.2 | O50: 2.5 | Q50: 00:41:00
B51: 4.2 | C51: 98 | D51: 4.2 | E51: 0 | F51: 0 | G51: 1029.3 | H51: 0 | I51: 0 | J51: 0 | K51: 0 | L51: 0 | M51: 1.5 | N51: 112.2 | O51: 2.5 | Q51: 00:42:00
B52: 4.2 | C52: 98 | D52: 4.2 | E52: 0 | F52: 0 | G52: 1029.2 | H52: 0 | I52: 0 | J52: 0 | K52: 0 | L52: 0 | M52: 1.5 | N52: 112.2 | O52: 2.5 | Q52: 00:43:00
B53: 4.2 | C53: 98 | D53: 4.2 | E53: 0 | F53: 0 | G53: 1029.4 | H53: 0 | I53: 0 | J53: 0 | K53: 0 | L53: 0 | M53: 1.5 | N53: 112.2 | O53: 2.5 | Q53: 00:44:00
B54: 4.2 | C54: 98 | D54: 4.2 | E54: 0 | F54: 0 | G54: 1029.5 | H54: 0 | I54: 0 | J54: 0 | K54: 0 | L54: 0 | M54: 1.5 | N54: 112.2 | O54: 2.5 | Q54: 00:45:00
B55: 4.2 | C55: 98 | D55: 4.2 | E55: 0 | F55: 0 | G55: 1029.5 | H55: 0 | I55: 0 | J55: 0 | K55: 0 | L55: 0 | M55: 1.5 | N55: 112.2 | O55: 2.4 | Q55: 00:46:00
B56: 4.2 | C56: 98 | D56: 4.2 | E56: 0 | F56: 0 | G56: 1029.4 | H56: 0 | I56: 0 | J56: 0 | K56: 0 | L56: 0 | M56: 1.5 | N56: 112.2 | O56: 2.4 | Q56: 00:47:00
B57: 4.2 | C57: 98 | D57: 4.2 | E57: 0 | F57: 0 | G57: 1029.4 | H57: 0 | I57: 0 | J57: 0 | K57: 0 | L57: 0 | M57: 1.5 | N57: 112.2 | O57: 2.4 | Q57: 00:48:00
B58: 4.2 | C58: 98 | D58: 4.2 | E58: 0 | F58: 0 | G58: 1029.5 | H58: 0 | I58: 0 | J58: 0 | K58: 0 | L58: 0 | M58: 1.5 | N58: 112.2 | O58: 2.4 | Q58: 00:49:00
B59: 4.2 | C59: 98 | D59: 4.2 | E59: 0 | F59: 0 | G59: 1029.4 | H59: 0 | I59: 0 | J59: 0 | K59: 0 | L59: 0 | M59: 1.5 | N59: 112.2 | O59: 2.4 | Q59: 00:50:00
B60: 4.2 | C60: 98 | D60: 4.2 | E60: 0 | F60: 0 | G60: 1029.4 | H60: 0 | I60: 0 | J60: 0 | K60: 0 | L60: 0 | M60: 1.5 | N60: 112.2 | O60: 2.4 | Q60: 00:51:00
B61: 4.2 | C61: 98 | D61: 4.2 | E61: 0 | F61: 0 | G61: 1029.5 | H61: 0 | I61: 0 | J61: 0 | K61: 0 | L61: 0 | M61: 1.5 | N61: 112.2 | O61: 2.4 | Q61: 00:52:00
B62: 4.2 | C62: 98 | D62: 4.2 | E62: 0 | F62: 0 | G62: 1029.5 | H62: 0 | I62: 0 | J62: 0 | K62: 0 | L62: 0 | M62: 1.5 | N62: 112.2 | O62: 2.4 | Q62: 00:53:00
B63: 4.1 | C63: 98 | D63: 4.1 | E63: 0 | F63: 0 | G63: 1029.4 | H63: 0 | I63: 0 | J63: 0 | K63: 0 | L63: 0 | M63: 1.5 | N63: 112.2 | O63: 2.4 | Q63: 00:54:00
B64: 4.1 | C64: 98 | D64: 4.1 | E64: 0 | F64: 0 | G64: 1029.6 | H64: 0 | I64: 0 | J64: 0 | K64: 0 | L64: 0 | M64: 1.5 | N64: 112.2 | O64: 2.4 | Q64: 00:55:00
B65: 4.1 | C65: 98 | D65: 4.1 | E65: 0 | F65: 0 | G65: 1029.4 | H65: 0 | I65: 0 | J65: 0 | K65: 0 | L65: 0 | M65: 1.5 | N65: 112.2 | O65: 2.4 | Q65: 00:56:00
B66: 4.1 | C66: 98 | D66: 4.1 | E66: 0 | F66: 0 | G66: 1029.5 | H66: 0 | I66: 0 | J66: 0 | K66: 0 | L66: 0 | M66: 1.5 | N66: 112.2 | O66: 2.3 | Q66: 00:57:00
B67: 4.1 | C67: 98 | D67: 4.1 | E67: 0 | F67: 0 | G67: 1029.4 | H67: 0 | I67: 0 | J67: 0 | K67: 0 | L67: 0 | M67: 1.5 | N67: 112.2 | O67: 2.3 | Q67: 00:58:00
B68: 4.1 | C68: 98 | D68: 4.1 | E68: 0 | F68: 0 | G68: 1029.6 | H68: 0 | I68: 0 | J68: 0 | K68: 0 | L68: 0 | M68: 1.5 | N68: 112.2 | O68: 2.3 | Q68: 00:59:00
B69: 4.1 | C69: 98 | D69: 4.1 | E69: 0 | F69: 0 | G69: 1029.5 | H69: 0 | I69: 0 | J69: 0 | K69: 0 | L69: 0 | M69: 1.5 | N69: 112.2 | O69: 2.3 | Q69: 01:00:00
B70: 4.1 | C70: 98 | D70: 4.1 | E70: 0 | F70: 0 | G70: 1029.4 | H70: 0 | I70: 0 | J70: 0 | K70: 0 | L70: 0 | M70: 1.5 | N70: 112.2 | O70: 2.3 | Q70: 01:01:00
B71: 4.1 | C71: 98 | D71: 4.1 | E71: 0 | F71: 0 | G71: 1029.7 | H71: 0 | I71: 0 | J71: 0 | K71: 0 | L71: 0 | M71: 1.5 | N71: 112.2 | O71: 2.3 | Q71: 01:02:00
B72: 4 | C72: 98 | D72: 4 | E72: 0 | F72: 0 | G72: 1029.6 | H72: 0 | I72: 0 | J72: 0 | K72: 0 | L72: 0 | M72: 1.5 | N72: 112.2 | O72: 2.2 | Q72: 01:03:00
B73: 4 | C73: 98 | D73: 4 | E73: 0 | F73: 0 | G73: 1029.2 | H73: 0 | I73: 0 | J73: 0 | K73: 0 | L73: 0 | M73: 1.5 | N73: 112.2 | O73: 2.2 | Q73: 01:04:00
B74: 4 | C74: 98 | D74: 4 | E74: 0 | F74: 0 | G74: 1029.4 | H74: 0 | I74: 0 | J74: 0 | K74: 0 | L74: 0 | M74: 1.5 | N74: 112.2 | O74: 2.2 | Q74: 01:05:00
B75: 4 | C75: 98 | D75: 4 | E75: 0 | F75: 0 | G75: 1029.5 | H75: 0 | I75: 0 | J75: 0 | K75: 0 | L75: 0 | M75: 1.5 | N75: 112.2 | O75: 2.2 | Q75: 01:06:00 | U75: =IF(J75>0,60,"") -> 
B76: 4 | C76: 98 | D76: 4 | E76: 0 | F76: 0 | G76: 1029.5 | H76: 0 | I76: 0 | J76: 0 | K76: 0 | L76: 0 | M76: 1.5 | N76: 112.2 | O76: 2.2 | Q76: 01:07:00
B77: 3.9 | C77: 98 | D77: 3.9 | E77: 0 | F77: 0 | G77: 1029.6 | H77: 0 | I77: 0 | J77: 0 | K77: 0 | L77: 0 | M77: 1.5 | N77: 112.2 | O77: 2.2 | Q77: 01:08:00
B78: 3.9 | C78: 98 | D78: 3.9 | E78: 0 | F78: 0 | G78: 1029.4 | H78: 0 | I78: 0 | J78: 0 | K78: 0 | L78: 0 | M78: 1.5 | N78: 112.2 | O78: 2.1 | Q78: 01:09:00
B79: 3.9 | C79: 98 | D79: 3.9 | E79: 0 | F79: 0 | G79: 1029.6 | H79: 0 | I79: 0 | J79: 0 | K79: 0 | L79: 0 | M79: 1.5 | N79: 112.2 | O79: 2.1 | Q79: 01:10:00
B80: 3.8 | C80: 98 | D80: 3.8 | E80: 0 | F80: 0 | G80: 1029.5 | H80: 0 | I80: 0 | J80: 0 | K80: 0 | L80: 0 | M80: 1.5 | N80: 112.2 | O80: 2.1 | Q80: 01:11:00
B81: 3.8 | C81: 98 | D81: 3.8 | E81: 0 | F81: 0 | G81: 1029.5 | H81: 0 | I81: 0 | J81: 0 | K81: 0 | L81: 0 | M81: 1.5 | N81: 112.2 | O81: 2.1 | Q81: 01:12:00
B82: 3.8 | C82: 98 | D82: 3.8 | E82: 0 | F82: 0 | G82: 1029.2 | H82: 0 | I82: 0 | J82: 0 | K82: 0 | L82: 0 | M82: 1.5 | N82: 112.2 | O82: 2.1 | Q82: 01:13:00
B83: 3.8 | C83: 98 | D83: 3.8 | E83: 0 | F83: 0 | G83: 1029.5 | H83: 0 | I83: 0 | J83: 0 | K83: 0 | L83: 0 | M83: 1.5 | N83: 112.2 | O83: 2 | Q83: 01:14:00
B84: 3.8 | C84: 98 | D84: 3.8 | E84: 0 | F84: 0 | G84: 1029.5 | H84: 0 | I84: 0 | J84: 0 | K84: 0 | L84: 0 | M84: 1.5 | N84: 112.2 | O84: 2 | Q84: 01:15:00
B85: 3.8 | C85: 98 | D85: 3.8 | E85: 0 | F85: 0 | G85: 1029.6 | H85: 0 | I85: 0 | J85: 0 | K85: 0 | L85: 0 | M85: 1.5 | N85: 112.2 | O85: 2 | Q85: 01:16:00
B86: 3.8 | C86: 98 | D86: 3.8 | E86: 0 | F86: 0 | G86: 1029.5 | H86: 0 | I86: 0 | J86: 0 | K86: 0 | L86: 0 | M86: 1.5 | N86: 112.2 | O86: 2 | Q86: 01:17:00
B87: 3.8 | C87: 98 | D87: 3.8 | E87: 0 | F87: 0 | G87: 1029.6 | H87: 0 | I87: 0 | J87: 0 | K87: 0 | L87: 0 | M87: 1.5 | N87: 112.2 | O87: 2 | Q87: 01:18:00
B88: 3.8 | C88: 98 | D88: 3.8 | E88: 0 | F88: 0 | G88: 1029.3 | H88: 0 | I88: 0 | J88: 0 | K88: 0 | L88: 0 | M88: 1.5 | N88: 112.2 | O88: 2 | Q88: 01:19:00
B89: 3.8 | C89: 98 | D89: 3.8 | E89: 0 | F89: 0 | G89: 1029.6 | H89: 0 | I89: 0 | J89: 0 | K89: 0 | L89: 0 | M89: 1.5 | N89: 112.2 | O89: 2 | Q89: 01:20:00
B90: 3.8 | C90: 98 | D90: 3.8 | E90: 0 | F90: 0 | G90: 1029.5 | H90: 0 | I90: 0 | J90: 0 | K90: 0 | L90: 0 | M90: 1.5 | N90: 112.2 | O90: 2.1 | Q90: 01:21:00
B91: 3.9 | C91: 98 | D91: 3.9 | E91: 0 | F91: 0 | G91: 1029.4 | H91: 0 | I91: 0 | J91: 0 | K91: 0 | L91: 0 | M91: 1.5 | N91: 112.2 | O91: 2.1 | Q91: 01:22:00
B92: 3.9 | C92: 98 | D92: 3.9 | E92: 0 | F92: 0 | G92: 1029.3 | H92: 0 | I92: 0 | J92: 0 | K92: 0 | L92: 0 | M92: 1.5 | N92: 112.2 | O92: 2.1 | Q92: 01:23:00
B93: 3.9 | C93: 98 | D93: 3.9 | E93: 0 | F93: 0 | G93: 1029.5 | H93: 0 | I93: 0 | J93: 0 | K93: 0 | L93: 0 | M93: 1.5 | N93: 112.2 | O93: 2.1 | Q93: 01:24:00
B94: 3.8 | C94: 98 | D94: 3.8 | E94: 0 | F94: 0 | G94: 1029.5 | H94: 0 | I94: 0 | J94: 0 | K94: 0 | L94: 0 | M94: 1.5 | N94: 112.2 | O94: 2.1 | Q94: 01:25:00
B95: 3.8 | C95: 98 | D95: 3.8 | E95: 0 | F95: 0 | G95: 1029.4 | H95: 0 | I95: 0 | J95: 0 | K95: 0 | L95: 0 | M95: 1.5 | N95: 112.2 | O95: 2.1 | Q95: 01:26:00
B96: 3.8 | C96: 98 | D96: 3.8 | E96: 0 | F96: 0 | G96: 1029.5 | H96: 0 | I96: 0 | J96: 0 | K96: 0 | L96: 0 | M96: 1.5 | N96: 112.2 | O96: 2.2 | Q96: 01:27:00
B97: 3.8 | C97: 98 | D97: 3.8 | E97: 0 | F97: 0 | G97: 1029.4 | H97: 0 | I97: 0 | J97: 0 | K97: 0 | L97: 0 | M97: 1.5 | N97: 112.2 | O97: 2.1 | Q97: 01:28:00
B98: 3.8 | C98: 98 | D98: 3.8 | E98: 0 | F98: 0 | G98: 1029.4 | H98: 0 | I98: 0 | J98: 0 | K98: 0 | L98: 0 | M98: 1.5 | N98: 112.2 | O98: 2.2 | Q98: 01:29:00
B99: 3.8 | C99: 99 | D99: 3.8 | E99: 0.4 | F99: 1.8 | G99: 1029.3 | H99: 0 | I99: 0 | J99: 0 | K99: 0 | L99: 0 | M99: 1.5 | N99: 112.2 | O99: 2.2 | Q99: 01:30:00
B100: 3.8 | C100: 98 | D100: 3.8 | E100: 0 | F100: 0 | G100: 1029.4 | H100: 0 | I100: 0 | J100: 0 | K100: 0 | L100: 0 | M100: 1.5 | N100: 112.2 | O100: 2.2 | Q100: 01:31:00
B101: 3.8 | C101: 98 | D101: 3.8 | E101: 0 | F101: 0 | G101: 1029.3 | H101: 0 | I101: 0 | J101: 0 | K101: 0 | L101: 0 | M101: 1.5 | N101: 112.2 | O101: 2.2 | Q101: 01:32:00
B102: 3.8 | C102: 99 | D102: 3.8 | E102: 0 | F102: 0 | G102: 1029.4 | H102: 0 | I102: 0 | J102: 0 | K102: 0 | L102: 0 | M102: 1.5 | N102: 112.2 | O102: 2.2 | Q102: 01:33:00
B103: 3.8 | C103: 98 | D103: 3.8 | E103: 0 | F103: 0 | G103: 1029.3 | H103: 0 | I103: 0 | J103: 0 | K103: 0 | L103: 0 | M103: 1.5 | N103: 112.2 | O103: 2.2 | Q103: 01:34:00
B104: 3.9 | C104: 99 | D104: 3.9 | E104: 0 | F104: 0 | G104: 1029.3 | H104: 0 | I104: 0 | J104: 0 | K104: 0 | L104: 0 | M104: 1.5 | N104: 112.2 | O104: 2.2 | Q104: 01:35:00
B105: 3.9 | C105: 98 | D105: 3.9 | E105: 0 | F105: 0 | G105: 1029.2 | H105: 0 | I105: 0 | J105: 0 | K105: 0 | L105: 0 | M105: 1.5 | N105: 112.2 | O105: 2.2 | Q105: 01:36:00
B106: 3.8 | C106: 98 | D106: 3.8 | E106: 0 | F106: 0 | G106: 1029.3 | H106: 0 | I106: 0 | J106: 0 | K106: 0 | L106: 0 | M106: 1.5 | N106: 112.2 | O106: 2.2 | Q106: 01:37:00
B107: 3.8 | C107: 99 | D107: 3.8 | E107: 0 | F107: 0 | G107: 1029.3 | H107: 0 | I107: 0 | J107: 0 | K107: 0 | L107: 0 | M107: 1.5 | N107: 112.2 | O107: 2.2 | Q107: 01:38:00
B108: 3.8 | C108: 99 | D108: 3.8 | E108: 0 | F108: 0 | G108: 1029.5 | H108: 0 | I108: 0 | J108: 0 | K108: 0 | L108: 0 | M108: 1.5 | N108: 112.2 | O108: 2.2 | Q108: 01:39:00
B109: 3.8 | C109: 98 | D109: 3.8 | E109: 0 | F109: 0 | G109: 1029.4 | H109: 0 | I109: 0 | J109: 0 | K109: 0 | L109: 0 | M109: 1.5 | N109: 112.2 | O109: 2.2 | Q109: 01:40:00
B110: 3.7 | C110: 98 | D110: 3.7 | E110: 0 | F110: 0 | G110: 1029.5 | H110: 0 | I110: 0 | J110: 0 | K110: 0 | L110: 0 | M110: 1.5 | N110: 112.2 | O110: 2.2 | Q110: 01:41:00
B111: 3.7 | C111: 99 | D111: 3.7 | E111: 0 | F111: 0 | G111: 1029.3 | H111: 0 | I111: 0 | J111: 0 | K111: 0 | L111: 0 | M111: 1.5 | N111: 112.2 | O111: 2.2 | Q111: 01:42:00
B112: 3.7 | C112: 99 | D112: 3.7 | E112: 0 | F112: 0 | G112: 1029.2 | H112: 0 | I112: 0 | J112: 0 | K112: 0 | L112: 0 | M112: 1.5 | N112: 112.2 | O112: 2.2 | Q112: 01:43:00
B113: 3.7 | C113: 99 | D113: 3.7 | E113: 0 | F113: 0 | G113: 1029.3 | H113: 0 | I113: 0 | J113: 0 | K113: 0 | L113: 0 | M113: 1.5 | N113: 112.2 | O113: 2.1 | Q113: 01:44:00
B114: 3.7 | C114: 99 | D114: 3.7 | E114: 0 | F114: 0 | G114: 1029.4 | H114: 0 | I114: 0 | J114: 0 | K114: 0 | L114: 0 | M114: 1.5 | N114: 112.2 | O114: 2.1 | Q114: 01:45:00
B115: 3.7 | C115: 99 | D115: 3.7 | E115: 0 | F115: 0 | G115: 1029.2 | H115: 0 | I115: 0 | J115: 0 | K115: 0 | L115: 0 | M115: 1.5 | N115: 112.2 | O115: 2.1 | Q115: 01:46:00
B116: 3.7 | C116: 99 | D116: 3.7 | E116: 0 | F116: 0 | G116: 1029.3 | H116: 0 | I116: 0 | J116: 0 | K116: 0 | L116: 0 | M116: 1.5 | N116: 112.2 | O116: 2.1 | Q116: 01:47:00
B117: 3.7 | C117: 99 | D117: 3.7 | E117: 0 | F117: 0 | G117: 1029.1 | H117: 0 | I117: 0 | J117: 0 | K117: 0 | L117: 0 | M117: 1.5 | N117: 112.2 | O117: 2.1 | Q117: 01:48:00
B118: 3.7 | C118: 99 | D118: 3.7 | E118: 0 | F118: 0 | G118: 1029.2 | H118: 0 | I118: 0 | J118: 0 | K118: 0 | L118: 0 | M118: 1.5 | N118: 112.2 | O118: 2.1 | Q118: 01:49:00
B119: 3.8 | C119: 99 | D119: 3.8 | E119: 0 | F119: 0 | G119: 1029.2 | H119: 0 | I119: 0 | J119: 0 | K119: 0 | L119: 0 | M119: 1.5 | N119: 112.2 | O119: 2.1 | Q119: 01:50:00
B120: 3.8 | C120: 99 | D120: 3.8 | E120: 1.1 | F120: 1.8 | G120: 1029 | H120: 0 | I120: 0 | J120: 0 | K120: 0 | L120: 0 | M120: 1.5 | N120: 112.2 | O120: 2.2 | Q120: 01:51:00
B121: 3.9 | C121: 99 | D121: 3.9 | E121: 0 | F121: 0 | G121: 1029.1 | H121: 0 | I121: 0 | J121: 0 | K121: 0 | L121: 0 | M121: 1.5 | N121: 112.2 | O121: 2.2 | Q121: 01:52:00
B122: 3.9 | C122: 99 | D122: 3.9 | E122: 0 | F122: 0 | G122: 1029.1 | H122: 0 | I122: 0 | J122: 0 | K122: 0 | L122: 0 | M122: 1.5 | N122: 112.2 | O122: 2.2 | Q122: 01:53:00
B123: 3.9 | C123: 99 | D123: 3.9 | E123: 0 | F123: 0 | G123: 1028.9 | H123: 0 | I123: 0 | J123: 0 | K123: 0 | L123: 0 | M123: 1.5 | N123: 112.2 | O123: 2.2 | Q123: 01:54:00
B124: 3.9 | C124: 99 | D124: 3.9 | E124: 0 | F124: 0 | G124: 1028.8 | H124: 0 | I124: 0 | J124: 0 | K124: 0 | L124: 0 | M124: 1.5 | N124: 112.2 | O124: 2.2 | Q124: 01:55:00
B125: 3.9 | C125: 99 | D125: 3.9 | E125: 0 | F125: 0 | G125: 1029 | H125: 0 | I125: 0 | J125: 0 | K125: 0 | L125: 0 | M125: 1.5 | N125: 112.2 | O125: 2.2 | Q125: 01:56:00
B126: 3.8 | C126: 99 | D126: 3.8 | E126: 0 | F126: 0 | G126: 1028.9 | H126: 0 | I126: 0 | J126: 0 | K126: 0 | L126: 0 | M126: 1.5 | N126: 112.2 | O126: 2.3 | Q126: 01:57:00
B127: 3.8 | C127: 99 | D127: 3.8 | E127: 0 | F127: 0 | G127: 1029.1 | H127: 0 | I127: 0 | J127: 0 | K127: 0 | L127: 0 | M127: 1.5 | N127: 112.2 | O127: 2.3 | Q127: 01:58:00
B128: 3.8 | C128: 99 | D128: 3.8 | E128: 0 | F128: 0 | G128: 1028.8 | H128: 0 | I128: 0 | J128: 0 | K128: 0 | L128: 0 | M128: 1.5 | N128: 112.2 | O128: 2.2 | Q128: 01:59:00
B129: 3.8 | C129: 99 | D129: 3.8 | E129: 0 | F129: 0 | G129: 1028.8 | H129: 0 | I129: 0 | J129: 0 | K129: 0 | L129: 0 | M129: 1.5 | N129: 112.2 | O129: 2.3 | Q129: 02:00:00
B130: 3.8 | C130: 99 | D130: 3.8 | E130: 0 | F130: 0 | G130: 1029 | H130: 0 | I130: 0 | J130: 0 | K130: 0 | L130: 0 | M130: 1.5 | N130: 112.2 | O130: 2.3 | Q130: 02:01:00
B131: 3.8 | C131: 99 | D131: 3.8 | E131: 0 | F131: 0 | G131: 1029.2 | H131: 0 | I131: 0 | J131: 0 | K131: 0 | L131: 0 | M131: 1.5 | N131: 112.2 | O131: 2.2 | Q131: 02:02:00
B132: 3.7 | C132: 99 | D132: 3.7 | E132: 0 | F132: 0 | G132: 1028.9 | H132: 0 | I132: 0 | J132: 0 | K132: 0 | L132: 0 | M132: 1.5 | N132: 112.2 | O132: 2.2 | Q132: 02:03:00
B133: 3.7 | C133: 99 | D133: 3.7 | E133: 0 | F133: 0 | G133: 1028.8 | H133: 0 | I133: 0 | J133: 0 | K133: 0 | L133: 0 | M133: 1.5 | N133: 112.2 | O133: 2.2 | Q133: 02:04:00
B134: 3.7 | C134: 99 | D134: 3.7 | E134: 0 | F134: 0 | G134: 1028.8 | H134: 0 | I134: 0 | J134: 0 | K134: 0 | L134: 0 | M134: 1.5 | N134: 112.2 | O134: 2.2 | Q134: 02:05:00
B135: 3.7 | C135: 99 | D135: 3.7 | E135: 0 | F135: 0 | G135: 1029 | H135: 0 | I135: 0 | J135: 0 | K135: 0 | L135: 0 | M135: 1.5 | N135: 112.2 | O135: 2.1 | Q135: 02:06:00
B136: 3.6 | C136: 99 | D136: 3.6 | E136: 0 | F136: 0 | G136: 1029 | H136: 0 | I136: 0 | J136: 0 | K136: 0 | L136: 0 | M136: 1.5 | N136: 112.2 | O136: 2.1 | Q136: 02:07:00
B137: 3.6 | C137: 99 | D137: 3.6 | E137: 0 | F137: 0 | G137: 1028.9 | H137: 0 | I137: 0 | J137: 0 | K137: 0 | L137: 0 | M137: 1.5 | N137: 112.2 | O137: 2 | Q137: 02:08:00
B138: 3.6 | C138: 99 | D138: 3.6 | E138: 0 | F138: 0 | G138: 1028.9 | H138: 0 | I138: 0 | J138: 0 | K138: 0 | L138: 0 | M138: 1.5 | N138: 112.2 | O138: 2 | Q138: 02:09:00
B139: 3.7 | C139: 99 | D139: 3.7 | E139: 0 | F139: 0 | G139: 1029 | H139: 0 | I139: 0 | J139: 0 | K139: 0 | L139: 0 | M139: 1.5 | N139: 112.2 | O139: 2 | Q139: 02:10:00 | U139: =IF(J139>0,60,"") -> 
B140: 3.7 | C140: 99 | D140: 3.7 | E140: 0 | F140: 0 | G140: 1029 | H140: 0 | I140: 0 | J140: 0 | K140: 0 | L140: 0 | M140: 1.5 | N140: 112.2 | O140: 2 | Q140: 02:11:00
B141: 3.7 | C141: 99 | D141: 3.7 | E141: 0 | F141: 0 | G141: 1029 | H141: 0 | I141: 0 | J141: 0 | K141: 0 | L141: 0 | M141: 1.5 | N141: 112.2 | O141: 2 | Q141: 02:12:00
B142: 3.7 | C142: 99 | D142: 3.7 | E142: 0 | F142: 0 | G142: 1028.7 | H142: 0 | I142: 0 | J142: 0 | K142: 0 | L142: 0 | M142: 1.5 | N142: 112.2 | O142: 2 | Q142: 02:13:00
B143: 3.7 | C143: 99 | D143: 3.7 | E143: 0 | F143: 0 | G143: 1028.8 | H143: 0 | I143: 0 | J143: 0 | K143: 0 | L143: 0 | M143: 1.5 | N143: 112.2 | O143: 1.9 | Q143: 02:14:00
B144: 3.7 | C144: 99 | D144: 3.7 | E144: 0 | F144: 0 | G144: 1028.9 | H144: 0 | I144: 0 | J144: 0 | K144: 0 | L144: 0 | M144: 1.5 | N144: 112.2 | O144: 1.9 | Q144: 02:15:00
B145: 3.7 | C145: 99 | D145: 3.7 | E145: 0 | F145: 0 | G145: 1028.8 | H145: 0 | I145: 0 | J145: 0 | K145: 0 | L145: 0 | M145: 1.5 | N145: 112.2 | O145: 1.9 | Q145: 02:16:00
B146: 3.7 | C146: 99 | D146: 3.7 | E146: 0 | F146: 0 | G146: 1028.9 | H146: 0 | I146: 0 | J146: 0 | K146: 0 | L146: 0 | M146: 1.5 | N146: 112.2 | O146: 1.9 | Q146: 02:17:00
B147: 3.7 | C147: 99 | D147: 3.7 | E147: 0 | F147: 0 | G147: 1028.8 | H147: 0 | I147: 0 | J147: 0 | K147: 0 | L147: 0 | M147: 1.5 | N147: 112.2 | O147: 1.9 | Q147: 02:18:00
B148: 3.7 | C148: 99 | D148: 3.7 | E148: 0 | F148: 0 | G148: 1028.9 | H148: 0 | I148: 0 | J148: 0 | K148: 0 | L148: 0 | M148: 1.5 | N148: 112.2 | O148: 1.9 | Q148: 02:19:00
B149: 3.7 | C149: 99 | D149: 3.7 | E149: 0 | F149: 0 | G149: 1028.7 | H149: 0 | I149: 0 | J149: 0 | K149: 0 | L149: 0 | M149: 1.5 | N149: 112.2 | O149: 1.9 | Q149: 02:20:00
B150: 3.7 | C150: 99 | D150: 3.7 | E150: 0 | F150: 0 | G150: 1028.8 | H150: 0 | I150: 0 | J150: 0 | K150: 0 | L150: 0 | M150: 1.5 | N150: 112.2 | O150: 1.9 | Q150: 02:21:00
B151: 3.7 | C151: 99 | D151: 3.7 | E151: 0 | F151: 0 | G151: 1028.6 | H151: 0 | I151: 0 | J151: 0 | K151: 0 | L151: 0 | M151: 1.5 | N151: 112.2 | O151: 2 | Q151: 02:22:00
B152: 3.7 | C152: 99 | D152: 3.7 | E152: 0 | F152: 0 | G152: 1028.8 | H152: 0 | I152: 0 | J152: 0 | K152: 0 | L152: 0 | M152: 1.5 | N152: 112.2 | O152: 2 | Q152: 02:23:00
B153: 3.7 | C153: 99 | D153: 3.7 | E153: 0 | F153: 0 | G153: 1028.6 | H153: 0 | I153: 0 | J153: 0 | K153: 0 | L153: 0 | M153: 1.5 | N153: 112.2 | O153: 2 | Q153: 02:24:00
B154: 3.7 | C154: 99 | D154: 3.7 | E154: 0 | F154: 0 | G154: 1029 | H154: 0 | I154: 0 | J154: 0 | K154: 0 | L154: 0 | M154: 1.5 | N154: 112.2 | O154: 2 | Q154: 02:25:00
B155: 3.7 | C155: 99 | D155: 3.7 | E155: 0 | F155: 0 | G155: 1028.6 | H155: 0 | I155: 0 | J155: 0 | K155: 0 | L155: 0 | M155: 1.5 | N155: 112.2 | O155: 2 | Q155: 02:26:00
B156: 3.7 | C156: 99 | D156: 3.7 | E156: 0 | F156: 0 | G156: 1028.8 | H156: 0 | I156: 0 | J156: 0 | K156: 0 | L156: 0 | M156: 1.5 | N156: 112.2 | O156: 2.1 | Q156: 02:27:00
B157: 3.7 | C157: 99 | D157: 3.7 | E157: 0 | F157: 0 | G157: 1028.8 | H157: 0 | I157: 0 | J157: 0 | K157: 0 | L157: 0 | M157: 1.5 | N157: 112.2 | O157: 2.1 | Q157: 02:28:00
B158: 3.7 | C158: 99 | D158: 3.7 | E158: 0 | F158: 0 | G158: 1028.6 | H158: 0 | I158: 0 | J158: 0 | K158: 0 | L158: 0 | M158: 1.5 | N158: 112.2 | O158: 2.1 | Q158: 02:29:00
B159: 3.7 | C159: 99 | D159: 3.7 | E159: 0 | F159: 0 | G159: 1028.8 | H159: 0 | I159: 0 | J159: 0 | K159: 0 | L159: 0 | M159: 1.5 | N159: 112.2 | O159: 2 | Q159: 02:30:00
B160: 3.7 | C160: 99 | D160: 3.7 | E160: 0 | F160: 0 | G160: 1028.6 | H160: 0 | I160: 0 | J160: 0 | K160: 0 | L160: 0 | M160: 1.5 | N160: 112.2 | O160: 2 | Q160: 02:31:00
B161: 3.6 | C161: 99 | D161: 3.6 | E161: 0 | F161: 0 | G161: 1028.8 | H161: 0 | I161: 0 | J161: 0 | K161: 0 | L161: 0 | M161: 1.5 | N161: 112.2 | O161: 2 | Q161: 02:32:00
B162: 3.6 | C162: 99 | D162: 3.6 | E162: 0 | F162: 0 | G162: 1028.5 | H162: 0 | I162: 0 | J162: 0 | K162: 0 | L162: 0 | M162: 1.5 | N162: 112.2 | O162: 2 | Q162: 02:33:00
B163: 3.6 | C163: 99 | D163: 3.6 | E163: 0 | F163: 0 | G163: 1028.5 | H163: 0 | I163: 0 | J163: 0 | K163: 0 | L163: 0 | M163: 1.5 | N163: 112.2 | O163: 2 | Q163: 02:34:00
B164: 3.6 | C164: 99 | D164: 3.6 | E164: 0 | F164: 0 | G164: 1028.5 | H164: 0 | I164: 0 | J164: 0 | K164: 0 | L164: 0 | M164: 1.5 | N164: 112.2 | O164: 2 | Q164: 02:35:00
B165: 3.6 | C165: 99 | D165: 3.6 | E165: 0 | F165: 0 | G165: 1028.5 | H165: 0 | I165: 0 | J165: 0 | K165: 0 | L165: 0 | M165: 1.5 | N165: 112.2 | O165: 2 | Q165: 02:36:00
B166: 3.6 | C166: 99 | D166: 3.6 | E166: 0 | F166: 0 | G166: 1028.5 | H166: 0 | I166: 0 | J166: 0 | K166: 0 | L166: 0 | M166: 1.5 | N166: 112.2 | O166: 2 | Q166: 02:37:00
B167: 3.6 | C167: 99 | D167: 3.6 | E167: 0 | F167: 0 | G167: 1028.6 | H167: 0 | I167: 0 | J167: 0 | K167: 0 | L167: 0 | M167: 1.5 | N167: 112.2 | O167: 1.9 | Q167: 02:38:00
B168: 3.5 | C168: 99 | D168: 3.5 | E168: 0 | F168: 0 | G168: 1028.4 | H168: 0 | I168: 0 | J168: 0 | K168: 0 | L168: 0 | M168: 1.5 | N168: 112.2 | O168: 1.9 | Q168: 02:39:00
B169: 3.5 | C169: 99 | D169: 3.5 | E169: 0 | F169: 0 | G169: 1028.5 | H169: 0 | I169: 0 | J169: 0 | K169: 0 | L169: 0 | M169: 1.5 | N169: 112.2 | O169: 1.9 | Q169: 02:40:00
B170: 3.5 | C170: 99 | D170: 3.5 | E170: 0 | F170: 0 | G170: 1028.3 | H170: 0 | I170: 0 | J170: 0 | K170: 0 | L170: 0 | M170: 1.5 | N170: 112.2 | O170: 1.9 | Q170: 02:41:00
B171: 3.5 | C171: 99 | D171: 3.5 | E171: 0 | F171: 0 | G171: 1028.8 | H171: 0 | I171: 0 | J171: 0 | K171: 0 | L171: 0 | M171: 1.5 | N171: 112.2 | O171: 2 | Q171: 02:42:00
B172: 3.5 | C172: 99 | D172: 3.5 | E172: 0 | F172: 0 | G172: 1028.6 | H172: 0 | I172: 0 | J172: 0 | K172: 0 | L172: 0 | M172: 1.5 | N172: 112.2 | O172: 2 | Q172: 02:43:00
B173: 3.5 | C173: 99 | D173: 3.5 | E173: 0 | F173: 0 | G173: 1028.6 | H173: 0 | I173: 0 | J173: 0 | K173: 0 | L173: 0 | M173: 1.5 | N173: 112.2 | O173: 1.9 | Q173: 02:44:00
B174: 3.5 | C174: 99 | D174: 3.5 | E174: 0 | F174: 0 | G174: 1028.5 | H174: 0 | I174: 0 | J174: 0 | K174: 0 | L174: 0 | M174: 1.5 | N174: 112.2 | O174: 1.9 | Q174: 02:45:00
B175: 3.5 | C175: 99 | D175: 3.5 | E175: 0 | F175: 0 | G175: 1028.6 | H175: 0 | I175: 0 | J175: 0 | K175: 0 | L175: 0 | M175: 1.5 | N175: 112.2 | O175: 1.9 | Q175: 02:46:00
B176: 3.5 | C176: 99 | D176: 3.5 | E176: 0 | F176: 0 | G176: 1028.4 | H176: 0 | I176: 0 | J176: 0 | K176: 0 | L176: 0 | M176: 1.5 | N176: 112.2 | O176: 1.9 | Q176: 02:47:00
B177: 3.5 | C177: 99 | D177: 3.5 | E177: 0 | F177: 0 | G177: 1028.4 | H177: 0 | I177: 0 | J177: 0 | K177: 0 | L177: 0 | M177: 1.5 | N177: 112.2 | O177: 1.9 | Q177: 02:48:00
B178: 3.5 | C178: 99 | D178: 3.5 | E178: 0 | F178: 0 | G178: 1028.5 | H178: 0 | I178: 0 | J178: 0 | K178: 0 | L178: 0 | M178: 1.5 | N178: 112.2 | O178: 2 | Q178: 02:49:00
B179: 3.5 | C179: 99 | D179: 3.5 | E179: 0 | F179: 0 | G179: 1028.4 | H179: 0 | I179: 0 | J179: 0 | K179: 0 | L179: 0 | M179: 1.5 | N179: 112.2 | O179: 2.1 | Q179: 02:50:00
B180: 3.5 | C180: 99 | D180: 3.5 | E180: 0 | F180: 0 | G180: 1028.5 | H180: 0 | I180: 0 | J180: 0 | K180: 0 | L180: 0 | M180: 1.5 | N180: 112.2 | O180: 2.2 | Q180: 02:51:00
B181: 3.5 | C181: 99 | D181: 3.5 | E181: 0 | F181: 0 | G181: 1028.4 | H181: 0 | I181: 0 | J181: 0 | K181: 0 | L181: 0 | M181: 1.5 | N181: 112.2 | O181: 2.2 | Q181: 02:52:00
B182: 3.5 | C182: 99 | D182: 3.5 | E182: 0 | F182: 0 | G182: 1028.5 | H182: 0 | I182: 0 | J182: 0 | K182: 0 | L182: 0 | M182: 1.5 | N182: 112.2 | O182: 2.3 | Q182: 02:53:00
B183: 3.6 | C183: 99 | D183: 3.6 | E183: 0 | F183: 0 | G183: 1028.4 | H183: 0 | I183: 0 | J183: 0 | K183: 0 | L183: 0 | M183: 1.5 | N183: 112.2 | O183: 2.3 | Q183: 02:54:00
B184: 3.6 | C184: 99 | D184: 3.6 | E184: 0 | F184: 0 | G184: 1028.5 | H184: 0 | I184: 0 | J184: 0 | K184: 0 | L184: 0 | M184: 1.5 | N184: 112.2 | O184: 2.3 | Q184: 02:55:00
B185: 3.6 | C185: 99 | D185: 3.6 | E185: 0 | F185: 0 | G185: 1028.4 | H185: 0 | I185: 0 | J185: 0 | K185: 0 | L185: 0 | M185: 1.5 | N185: 112.2 | O185: 2.3 | Q185: 02:56:00
B186: 3.5 | C186: 99 | D186: 3.5 | E186: 0 | F186: 0 | G186: 1028.6 | H186: 0 | I186: 0 | J186: 0 | K186: 0 | L186: 0 | M186: 1.5 | N186: 112.2 | O186: 2.3 | Q186: 02:57:00
B187: 3.5 | C187: 99 | D187: 3.5 | E187: 0 | F187: 0 | G187: 1028.6 | H187: 0 | I187: 0 | J187: 0 | K187: 0 | L187: 0 | M187: 1.5 | N187: 112.2 | O187: 2.2 | Q187: 02:58:00
B188: 3.4 | C188: 99 | D188: 3.4 | E188: 0 | F188: 0 | G188: 1028.4 | H188: 0 | I188: 0 | J188: 0 | K188: 0 | L188: 0 | M188: 1.5 | N188: 112.2 | O188: 2.2 | Q188: 02:59:00
B189: 3.3 | C189: 99 | D189: 3.3 | E189: 0 | F189: 0 | G189: 1028.5 | H189: 0 | I189: 0 | J189: 0 | K189: 0 | L189: 0 | M189: 1.5 | N189: 112.2 | O189: 2.1 | Q189: 03:00:00
B190: 3.3 | C190: 99 | D190: 3.3 | E190: 0 | F190: 0 | G190: 1028.5 | H190: 0 | I190: 0 | J190: 0 | K190: 0 | L190: 0 | M190: 1.5 | N190: 112.2 | O190: 2.1 | Q190: 03:01:00
B191: 3.3 | C191: 99 | D191: 3.3 | E191: 0 | F191: 0 | G191: 1028.5 | H191: 0 | I191: 0 | J191: 0 | K191: 0 | L191: 0 | M191: 1.5 | N191: 112.2 | O191: 2 | Q191: 03:02:00
B192: 3.2 | C192: 99 | D192: 3.2 | E192: 0 | F192: 0 | G192: 1028.5 | H192: 0 | I192: 0 | J192: 0 | K192: 0 | L192: 0 | M192: 1.5 | N192: 112.2 | O192: 2 | Q192: 03:03:00
B193: 3.2 | C193: 99 | D193: 3.2 | E193: 0 | F193: 0 | G193: 1028.5 | H193: 0 | I193: 0 | J193: 0 | K193: 0 | L193: 0 | M193: 1.5 | N193: 112.2 | O193: 1.9 | Q193: 03:04:00
B194: 3.2 | C194: 99 | D194: 3.2 | E194: 0 | F194: 0 | G194: 1028.5 | H194: 0 | I194: 0 | J194: 0 | K194: 0 | L194: 0 | M194: 1.5 | N194: 112.2 | O194: 1.9 | Q194: 03:05:00
B195: 3.2 | C195: 99 | D195: 3.2 | E195: 0 | F195: 0 | G195: 1028.4 | H195: 0 | I195: 0 | J195: 0 | K195: 0 | L195: 0 | M195: 1.5 | N195: 112.2 | O195: 1.9 | Q195: 03:06:00
B196: 3.2 | C196: 99 | D196: 3.2 | E196: 0 | F196: 0 | G196: 1028.6 | H196: 0 | I196: 0 | J196: 0 | K196: 0 | L196: 0 | M196: 1.5 | N196: 112.2 | O196: 1.9 | Q196: 03:07:00
B197: 3.2 | C197: 99 | D197: 3.2 | E197: 0 | F197: 0 | G197: 1028.4 | H197: 0 | I197: 0 | J197: 0 | K197: 0 | L197: 0 | M197: 1.5 | N197: 112.2 | O197: 1.9 | Q197: 03:08:00
B198: 3.2 | C198: 99 | D198: 3.2 | E198: 0 | F198: 0 | G198: 1028.5 | H198: 0 | I198: 0 | J198: 0 | K198: 0 | L198: 0 | M198: 1.5 | N198: 112.2 | O198: 1.8 | Q198: 03:09:00
B199: 3.2 | C199: 99 | D199: 3.2 | E199: 0 | F199: 0 | G199: 1028.6 | H199: 0 | I199: 0 | J199: 0 | K199: 0 | L199: 0 | M199: 1.5 | N199: 112.2 | O199: 1.8 | Q199: 03:10:00
B200: 3.1 | C200: 99 | D200: 3.1 | E200: 0 | F200: 0 | G200: 1028.5 | H200: 0 | I200: 0 | J200: 0 | K200: 0 | L200: 0 | M200: 1.5 | N200: 112.2 | O200: 1.7 | Q200: 03:11:00
... 1138 more rows

Sheet Février_2023
L1: 4.5 | R1: 10.9 | AJ1: =$AJ$5+RELEVÉS!$AK$5 -> 1.5 | BE1: La Rochelle | BF1: http://www.meteociel.fr/climatologie/villes.php?code=7316&mois=02&annee=2023 | BQ1: Ephéméride | BR1: http://www.ephemeride.com/calendrier/solaire/19/horaires-du-soleil.html
AW2: ²
AG3: =$C$5 -> Février_2023 | AJ3: Hauteur de pluie en mm | AN3: Temps de précipitations par 1/4 de journée | AX3: =$C$5 -> Février_2023 | BA3: Chaleur solaire | BE3: Marées | BF3: https://marine.meteoconsult.fr/meteo-marine/horaires-maree-la-tranche-sur-mer-1083-0.php
C5: Février_2023 | F5: Mise à jour | H5: le | L5: =NOW() -> 2023-02-20T13:42:13.900 | X5: =C5 -> Février_2023 | AA5: =NOW() -> 2023-02-20T13:42:13.900 | AG5: Mise à jour | AJ5: =SUM($AJ$11:$AJ$66) -> 1.5 | AL5: =SUM($AL$11:$AL$66) -> 0.01972685185 | AN5: =SUM(AN$11:AN$66) -> 0.1520833333 | AP5: =SUM(AP$11:AP$66) -> 0.03958333333 | AR5: =SUM(AR$11:AR$66) -> 0 | AT5: =SUM(AT$11:AT$66) -> 0 | AX5: Mise à jour | BA5: =SUM(BA$11:BA$66) -> 4.741666667 | BE5: T° de l'eau | BF5: https://fr.surf-forecast.com/breaks/La-Tranchesur-Mer/seatemp | BQ5: meteofloralies | BR5: https://www.wunderground.com/dashboard/pws/ILATRA6
C7: Températures | F7: =MIN(F$11:F66) -> 0 | H7: =VLOOKUP($F$7,$F$11:$Y$66,17,0) ->  | L7: =MIN($L$11:$L$66) -> -3.4 | N7: =VLOOKUP($L$7,$L$11:$Y$66,14,0) -> 2023-02-09 | R7: =MAX(R$11:R66) -> 13.8 | T7: =VLOOKUP($R$7,$R$11:$Y$66,8,0) -> 2023-02-16 | X7: Mise à jour | AA7: Maxi | AG7: =TODAY() -> 2023-02-20 | AJ7: =VLOOKUP($AJ$9,$AJ$11:$AY$66,16,0) -> 2023-02-17 | AL7: =VLOOKUP($AL$9,$AL$11:$AY$66,14,0) -> 2023-02-17 | AN7: Pluie AM | AP7: Pluie AM | AR7: Pluie AP | AT7: Pluie AP | AX7: =TODAY() -> 2023-02-20 | BA7: =VLOOKUP($BA$9,$BA$11:$BE$66,5,0) -> 2023-02-11
F9: Ressentie | H9: =VLOOKUP($F$7,$F$11:$T$66,3,0) ->  | J9: Variation | L9: Mini | N9: =VLOOKUP($L$7,$L$11:$N$66,3,0) -> 07:56:00 | P9: Variation | R9: Maxi | T9: =VLOOKUP($R$7,$R$11:$T$66,3,0) -> 14:43:00 | X9: Vitesse du vent | AA9: =MAX($AA$11:$AA$66) -> 38.2 | AC9: =VLOOKUP($AA$9,$AA$11:$AH$66,8,0) -> 2023-02-07 | AG9: =$BO$73+RELEVÉS!AG5 -> 112.2 | AH9: Année | AJ9: =MAX($AJ$11:$AJ$66) -> 1.2 | AL9: =MAX($AL$11:AL$66) -> 0.01650462963 | AN9: de 0 à 6h59 | AP9: 7h à 11h59 | AR9: 12h à 18h59 | AT9: 19h à 23h59 | AX9: Année | AY9: =$BQ$73+$BA$5 -> 9.483333333 | BA9: =MAX($BA$11:$BA$66) -> 0.3826388889 | BH9: Météofloralies | BI9: =SUBSTITUE(TEXTE(MAX(CNUM(SUBSTITUE($U$2;".";","));CNUM(SUBSTITUE($V$2;".";",")));"standard");",";".")
C11: =PROPER(TEXT(D11,"JJJJ")) -> Mercredi | D11: 2023-02-01 | J11: =IF(OR(L1="",L11=""),"",IF(L11>L1,"»",IF(L11<L1,"¼","¹º"))) -> » | L11: 5.4 | N11: 23:46:00 | P11: =IF(OR(R9="",R11=""),"",IF(R11>R9,"»",IF(R11<R9,"¼","¹º"))) -> ¼ | R11: 10.5 | T11: 14:12:00 | X11: =$C11 -> Mercredi | Y11: =$D11 -> 2023-02-01 | AA11: 20 | AC11: 12:08:00 | AG11: =$C11 -> Mercredi | AH11: =$D11 -> 2023-02-01 | AJ11: 0 | AL11: 00:00:00 | AN11: 00:00:00 | AP11: 00:00:00 | AR11: 00:00:00 | AT11: 00:00:00 | AX11: =$C11 -> Mercredi | AY11: =$D11 -> 2023-02-01 | BA11: 05:34:00 | BD11: 25 | BE11: =D11 -> 2023-02-01 | BF11: =$C11 -> Mercredi
C13: =PROPER(TEXT(D13,"JJJJ")) -> Jeudi | D13: =$D11+1 -> 2023-02-02 | J13: =IF(OR(L11="",L13=""),"",IF(L13>L11,"»",IF(L13<L11,"¼","¹º"))) -> ¼ | L13: 4.7 | N13: 01:28:00 | P13: =IF(OR(R11="",R13=""),"",IF(R13>R11,"»",IF(R13<R11,"¼","¹º"))) -> » | R13: 11 | T13: 12:57:00 | X13: =$C13 -> Jeudi | Y13: =$D13 -> 2023-02-02 | AA13: 10 | AC13: 13:39:00 | AG13: =$C13 -> Jeudi | AH13: =$D13 -> 2023-02-02 | AJ13: 0 | AL13: 00:00:00 | AN13: 00:00:00 | AP13: 00:00:00 | AR13: 00:00:00 | AT13: 00:00:00 | AX13: =$C13 -> Jeudi | AY13: =$D13 -> 2023-02-02 | BA13: 03:54:00 | BD13: 26 | BE13: =D13 -> 2023-02-02 | BF13: =$C13 -> Jeudi
C15: =PROPER(TEXT(D15,"JJJJ")) -> Vendredi | D15: =$D13+1 -> 2023-02-03 | J15: =IF(OR(L13="",L15=""),"",IF(L15>L13,"»",IF(L15<L13,"¼","¹º"))) -> » | L15: 6.5 | N15: 00:21:00 | P15: =IF(OR(R13="",R15=""),"",IF(R15>R13,"»",IF(R15<R13,"¼","¹º"))) -> ¼ | R15: 9.7 | T15: 16:00:00 | X15: =$C15 -> Vendredi | Y15: =$D15 -> 2023-02-03 | AA15: 20.3 | AC15: 14:31:00 | AG15: =$C15 -> Vendredi | AH15: =$D15 -> 2023-02-03 | AJ15: 0 | AL15: 00:00:00 | AN15: 00:00:00 | AP15: 00:00:00 | AR15: 00:00:00 | AT15: 00:00:00 | AX15: =$C15 -> Vendredi | AY15: =$D15 -> 2023-02-03 | BA15: 01:03:00 | BD15: 27 | BE15: =D15 -> 2023-02-03 | BF15: =$C15 -> Vendredi
C17: =PROPER(TEXT(D17,"JJJJ")) -> Samedi | D17: =$D15+1 -> 2023-02-04 | J17: =IF(OR(L15="",L17=""),"",IF(L17>L15,"»",IF(L17<L15,"¼","¹º"))) -> » | L17: 7 | N17: 00:00:00 | P17: =IF(OR(R15="",R17=""),"",IF(R17>R15,"»",IF(R17<R15,"¼","¹º"))) -> » | R17: 10.3 | T17: 14:41:00 | X17: =$C17 -> Samedi | Y17: =$D17 -> 2023-02-04 | AA17: 20 | AC17: 12:44:00 | AG17: =$C17 -> Samedi | AH17: =$D17 -> 2023-02-04 | AJ17: 0 | AL17: 00:00:00 | AN17: 00:00:00 | AP17: 00:00:00 | AR17: 00:00:00 | AT17: 00:00:00 | AX17: =$C17 -> Samedi | AY17: =$D17 -> 2023-02-04 | BA17: 00:00:00 | BD17: 23 | BE17: =D17 -> 2023-02-04 | BF17: =$C17 -> Samedi
C19: =PROPER(TEXT(D19,"JJJJ")) -> Dimanche | D19: =$D17+1 -> 2023-02-05 | J19: =IF(OR(L17="",L19=""),"",IF(L19>L17,"»",IF(L19<L17,"¼","¹º"))) -> ¼ | L19: 3.5 | N19: 0.9993055556 | P19: =IF(OR(R17="",R19=""),"",IF(R19>R17,"»",IF(R19<R17,"¼","¹º"))) -> » | R19: 12.5 | T19: 0.6027777778 | X19: =$C19 -> Dimanche | Y19: =$D19 -> 2023-02-05 | AA19: 22 | AC19: 22:25:00 | AG19: =$C19 -> Dimanche | AH19: =$D19 -> 2023-02-05 | AJ19: 0 | AL19: 00:00:00 | AN19: 00:00:00 | AP19: 00:00:00 | AR19: 00:00:00 | AT19: 00:00:00 | AX19: =$C19 -> Dimanche | AY19: =$D19 -> 2023-02-05 | BA19: 05:51:00 | BD19: 8 | BE19: =D19 -> 2023-02-05 | BF19: =$C19 -> Dimanche
C21: =PROPER(TEXT(D21,"JJJJ")) -> Lundi | D21: =$D19+1 -> 2023-02-06 | J21: =IF(OR(L19="",L21=""),"",IF(L21>L19,"»",IF(L21<L19,"¼","¹º"))) -> ¼ | L21: 0.5 | N21: 0.2958333333 | P21: =IF(OR(R19="",R21=""),"",IF(R21>R19,"»",IF(R21<R19,"¼","¹º"))) -> ¼ | R21: 8.9 | T21: 0.6541666667 | X21: =$C21 -> Lundi | Y21: =$D21 -> 2023-02-06 | AA21: 33 | AC21: 12:17:00 | AG21: =$C21 -> Lundi | AH21: =$D21 -> 2023-02-06 | AJ21: 0 | AL21: 00:00:00 | AN21: 00:00:00 | AP21: 00:00:00 | AR21: 00:00:00 | AT21: 00:00:00 | AX21: =$C21 -> Lundi | AY21: =$D21 -> 2023-02-06 | BA21: 06:21:00 | BD21: 4 | BE21: =D21 -> 2023-02-06 | BF21: =$C21 -> Lundi
C23: =PROPER(TEXT(D23,"JJJJ")) -> Mardi | D23: =$D21+1 -> 2023-02-07 | J23: =IF(OR(L21="",L23=""),"",IF(L23>L21,"»",IF(L23<L21,"¼","¹º"))) -> ¼ | L23: -0.6 | N23: 0.2965277778 | P23: =IF(OR(R21="",R23=""),"",IF(R23>R21,"»",IF(R23<R21,"¼","¹º"))) -> ¼ | R23: 7.7 | T23: 0.6236111111 | X23: =$C23 -> Mardi | Y23: =$D23 -> 2023-02-07 | AA23: 38.2 | AC23: 15:17:00 | AG23: =$C23 -> Mardi | AH23: =$D23 -> 2023-02-07 | AJ23: 0 | AL23: 00:00:00 | AN23: 00:00:00 | AP23: 00:00:00 | AR23: 00:00:00 | AT23: 00:00:00 | AX23: =$C23 -> Mardi | AY23: =$D23 -> 2023-02-07 | BA23: 07:50:00 | BD23: 5 | BE23: =D23 -> 2023-02-07 | BF23: =$C23 -> Mardi
C25: =PROPER(TEXT(D25,"JJJJ")) -> Mercredi | D25: =$D23+1 -> 2023-02-08 | J25: =IF(OR(L23="",L25=""),"",IF(L25>L23,"»",IF(L25<L23,"¼","¹º"))) -> ¼ | L25: -1.5 | N25: 0.3402777778 | P25: =IF(OR(R23="",R25=""),"",IF(R25>R23,"»",IF(R25<R23,"¼","¹º"))) -> » | R25: 10.7 | T25: 0.6194444444 | X25: =$C25 -> Mercredi | Y25: =$D25 -> 2023-02-08 | AA25: 18.1 | AC25: 10:40:00 | AG25: =$C25 -> Mercredi | AH25: =$D25 -> 2023-02-08 | AJ25: 0 | AL25: 00:00:00 | AN25: 00:00:00 | AP25: 00:00:00 | AR25: 00:00:00 | AT25: 00:00:00 | AX25: =$C25 -> Mercredi | AY25: =$D25 -> 2023-02-08 | BA25: 08:17:00 | BD25: 6 | BE25: =D25 -> 2023-02-08 | BF25: =$C25 -> Mercredi
C27: =PROPER(TEXT(D27,"JJJJ")) -> Jeudi | D27: =$D25+1 -> 2023-02-09 | J27: =IF(OR(L25="",L27=""),"",IF(L27>L25,"»",IF(L27<L25,"¼","¹º"))) -> ¼ | L27: -3.4 | N27: 0.3305555556 | P27: =IF(OR(R25="",R27=""),"",IF(R27>R25,"»",IF(R27<R25,"¼","¹º"))) -> ¼ | R27: 8.4 | T27: 0.6291666667 | X27: =$C27 -> Jeudi | Y27: =$D27 -> 2023-02-09 | AA27: 15.4 | AC27: 13:49:00 | AG27: =$C27 -> Jeudi | AH27: =$D27 -> 2023-02-09 | AJ27: 0 | AL27: 00:00:00 | AN27: 00:00:00 | AP27: 00:00:00 | AR27: 00:00:00 | AT27: 00:00:00 | AX27: =$C27 -> Jeudi | AY27: =$D27 -> 2023-02-09 | BA27: 08:02:00 | BD27: 7 | BE27: =D27 -> 2023-02-09 | BF27: =$C27 -> Jeudi
C29: =PROPER(TEXT(D29,"JJJJ")) -> Vendredi | D29: =$D27+1 -> 2023-02-10 | J29: =IF(OR(L27="",L29=""),"",IF(L29>L27,"»",IF(L29<L27,"¼","¹º"))) -> » | L29: -2 | N29: 0.3104166667 | P29: =IF(OR(R27="",R29=""),"",IF(R29>R27,"»",IF(R29<R27,"¼","¹º"))) -> » | R29: 10.8 | T29: 0.6402777778 | X29: =$C29 -> Vendredi | Y29: =$D29 -> 2023-02-10 | AA29: 25.2 | AC29: 15:01:00 | AG29: =$C29 -> Vendredi | AH29: =$D29 -> 2023-02-10 | AJ29: 0 | AL29: 00:00:00 | AN29: 00:00:00 | AP29: 00:00:00 | AR29: 00:00:00 | AT29: 00:00:00 | AX29: =$C29 -> Vendredi | AY29: =$D29 -> 2023-02-10 | BA29: 08:12:00 | BD29: 8 | BE29: =D29 -> 2023-02-10 | BF29: =$C29 -> Vendredi
C31: =PROPER(TEXT(D31,"JJJJ")) -> Samedi | D31: =$D29+1 -> 2023-02-11 | J31: =IF(OR(L29="",L31=""),"",IF(L31>L29,"»",IF(L31<L29,"¼","¹º"))) -> » | L31: -1.1 | N31: 0.3520833333 | P31: =IF(OR(R29="",R31=""),"",IF(R31>R29,"»",IF(R31<R29,"¼","¹º"))) -> » | R31: 12.5 | T31: 0.6284722222 | X31: =$C31 -> Samedi | Y31: =$D31 -> 2023-02-11 | AA31: 18.4 | AC31: 12:26:00 | AG31: =$C31 -> Samedi | AH31: =$D31 -> 2023-02-11 | AJ31: 0 | AL31: 00:00:00 | AN31: 00:00:00 | AP31: 00:00:00 | AR31: 00:00:00 | AT31: 00:00:00 | AX31: =$C31 -> Samedi | AY31: =$D31 -> 2023-02-11 | BA31: 09:11:00 | BD31: 9 | BE31: =D31 -> 2023-02-11 | BF31: =$C31 -> Samedi
C33: =PROPER(TEXT(D33,"JJJJ")) -> Dimanche | D33: =$D31+1 -> 2023-02-12 | J33: =IF(OR(L31="",L33=""),"",IF(L33>L31,"»",IF(L33<L31,"¼","¹º"))) -> » | L33: -0.9 | N33: 0.3381944444 | P33: =IF(OR(R31="",R33=""),"",IF(R33>R31,"»",IF(R33<R31,"¼","¹º"))) -> ¼ | R33: 11.8 | T33: 0.7104166667 | X33: =$C33 -> Dimanche | Y33: =$D33 -> 2023-02-12 | AA33: 16.3 | AC33: 12:06:00 | AG33: =$C33 -> Dimanche | AH33: =$D33 -> 2023-02-12 | AJ33: 0 | AL33: 00:00:00 | AN33: 00:00:00 | AP33: 00:00:00 | AR33: 00:00:00 | AT33: 00:00:00 | AX33: =$C33 -> Dimanche | AY33: =$D33 -> 2023-02-12 | BA33: 08:34:00 | BD33: 10 | BE33: =D33 -> 2023-02-12 | BF33: =$C33 -> Dimanche
C35: =PROPER(TEXT(D35,"JJJJ")) -> Lundi | D35: =$D33+1 -> 2023-02-13 | J35: =IF(OR(L33="",L35=""),"",IF(L35>L33,"»",IF(L35<L33,"¼","¹º"))) -> ¼ | L35: -2.9 | N35: 0.3305555556 | P35: =IF(OR(R33="",R35=""),"",IF(R35>R33,"»",IF(R35<R33,"¼","¹º"))) -> » | R35: 12.9 | T35: 0.6423611111 | X35: =$C35 -> Lundi | Y35: =$D35 -> 2023-02-13 | AA35: 16.6 | AC35: 13:04:00 | AG35: =$C35 -> Lundi | AH35: =$D35 -> 2023-02-13 | AJ35: 0 | AL35: 00:00:00 | AN35: 00:00:00 | AP35: 00:00:00 | AR35: 00:00:00 | AT35: 00:00:00 | AX35: =$C35 -> Lundi | AY35: =$D35 -> 2023-02-13 | BA35: 08:41:00 | BD35: 11 | BE35: =D35 -> 2023-02-13 | BF35: =$C35 -> Lundi
C37: =PROPER(TEXT(D37,"JJJJ")) -> Mardi | D37: =$D35+1 -> 2023-02-14 | J37: =IF(OR(L35="",L37=""),"",IF(L37>L35,"»",IF(L37<L35,"¼","¹º"))) -> ¹º | L37: -2.9 | N37: 0.3305555556 | P37: =IF(OR(R35="",R37=""),"",IF(R37>R35,"»",IF(R37<R35,"¼","¹º"))) -> ¹º | R37: 12.9 | T37: 0.6423611111 | X37: =$C37 -> Mardi | Y37: =$D37 -> 2023-02-14 | AA37: 16.6 | AC37: 13:04:00 | AG37: =$C37 -> Mardi | AH37: =$D37 -> 2023-02-14 | AJ37: 0 | AL37: 00:00:00 | AN37: 00:00:00 | AP37: 00:00:00 | AR37: 00:00:00 | AT37: 00:00:00 | AX37: =$C37 -> Mardi | AY37: =$D37 -> 2023-02-14 | BA37: 08:41:00 | BD37: 12 | BE37: =D37 -> 2023-02-14 | BF37: =$C37 -> Mardi
C39: =PROPER(TEXT(D39,"JJJJ")) -> Mercredi | D39: =$D37+1 -> 2023-02-15 | J39: =IF(OR(L37="",L39=""),"",IF(L39>L37,"»",IF(L39<L37,"¼","¹º"))) -> » | L39: 1.1 | N39: 0.3625 | P39: =IF(OR(R37="",R39=""),"",IF(R39>R37,"»",IF(R39<R37,"¼","¹º"))) -> ¼ | R39: 12.6 | T39: 0.5694444444 | X39: =$C39 -> Mercredi | Y39: =$D39 -> 2023-02-15 | AA39: 9.4 | AC39: 10:30:00 | AG39: =$C39 -> Mercredi | AH39: =$D39 -> 2023-02-15 | AJ39: 0 | AL39: 00:00:00 | AN39: 00:00:00 | AP39: 00:00:00 | AR39: 00:00:00 | AT39: 00:00:00 | AX39: =$C39 -> Mercredi | AY39: =$D39 -> 2023-02-15 | BA39: 06:59:00 | BD39: 13 | BE39: =D39 -> 2023-02-15 | BF39: =$C39 -> Mercredi
C41: =PROPER(TEXT(D41,"JJJJ")) -> Jeudi | D41: =$D39+1 -> 2023-02-16 | J41: =IF(OR(L39="",L41=""),"",IF(L41>L39,"»",IF(L41<L39,"¼","¹º"))) -> » | L41: 4.3 | N41: 0 | P41: =IF(OR(R39="",R41=""),"",IF(R41>R39,"»",IF(R41<R39,"¼","¹º"))) -> » | R41: 13.8 | T41: 0.6131944444 | X41: =$C41 -> Jeudi | Y41: =$D41 -> 2023-02-16 | AA41: 11.2 | AC41: 15:03:00 | AG41: =$C41 -> Jeudi | AH41: =$D41 -> 2023-02-16 | AJ41: 0 | AL41: 00:00:00 | AN41: 00:00:00 | AP41: 00:00:00 | AR41: 00:00:00 | AT41: 00:00:00 | AX41: =$C41 -> Jeudi | AY41: =$D41 -> 2023-02-16 | BA41: 04:02:00 | BD41: 14 | BE41: =D41 -> 2023-02-16 | BF41: =$C41 -> Jeudi
C43: =PROPER(TEXT(D43,"JJJJ")) -> Vendredi | D43: =$D41+1 -> 2023-02-17 | J43: =IF(OR(L41="",L43=""),"",IF(L43>L41,"»",IF(L43<L41,"¼","¹º"))) -> » | L43: 9.8 | N43: 00:33:00 | P43: =IF(OR(R41="",R43=""),"",IF(R43>R41,"»",IF(R43<R41,"¼","¹º"))) -> ¼ | R43: 12.1 | T43: 11:36:00 | X43: =$C43 -> Vendredi | Y43: =$D43 -> 2023-02-17 | AA43: 13 | AC43: 14:23:00 | AG43: =$C43 -> Vendredi | AH43: =$D43 -> 2023-02-17 | AJ43: 1.2 | AL43: 00:23:46 | AN43: 03:39:00 | AP43: 00:00:00 | AR43: 00:00:00 | AT43: 00:00:00 | AX43: =$C43 -> Vendredi | AY43: =$D43 -> 2023-02-17 | BA43: 00:00:00 | BD43: 15 | BE43: =D43 -> 2023-02-17 | BF43: =$C43 -> Vendredi
C45: =PROPER(TEXT(D45,"JJJJ")) -> Samedi | D45: =$D43+1 -> 2023-02-18 | J45: =IF(OR(L43="",L45=""),"",IF(L45>L43,"»",IF(L45<L43,"¼","¹º"))) -> ¼ | L45: 8.8 | N45: 07:54:00 | P45: =IF(OR(R43="",R45=""),"",IF(R45>R43,"»",IF(R45<R43,"¼","¹º"))) -> » | R45: 13.6 | T45: 15:27:00 | X45: =$C45 -> Samedi | Y45: =$D45 -> 2023-02-18 | AA45: 11.2 | AC45: 21:24:00 | AG45: =$C45 -> Samedi | AH45: =$D45 -> 2023-02-18 | AJ45: 0.3 | AL45: 00:04:38.400 | AN45: 00:00:00 | AP45: 00:57:00 | AR45: 00:00:00 | AT45: 00:00:00 | AX45: =$C45 -> Samedi | AY45: =$D45 -> 2023-02-18 | BA45: 07:09:00 | BD45: 16 | BE45: =D45 -> 2023-02-18 | BF45: =$C45 -> Samedi
C47: =PROPER(TEXT(D47,"JJJJ")) -> Dimanche | D47: =$D45+1 -> 2023-02-19 | J47: =IF(OR(L45="",L47=""),"",IF(L47>L45,"»",IF(L47<L45,"¼","¹º"))) -> ¼ | L47: 4.3 | N47: 23:44:00 | P47: =IF(OR(R45="",R47=""),"",IF(R47>R45,"»",IF(R47<R45,"¼","¹º"))) -> ¼ | R47: 11.9 | T47: 15:18:00 | X47: =$C47 -> Dimanche | Y47: =$D47 -> 2023-02-19 | AA47: 13.2 | AC47: 17:12:00 | AG47: =$C47 -> Dimanche | AH47: =$D47 -> 2023-02-19 | AJ47: 0 | AL47: 00:00:00 | AN47: 00:00:00 | AP47: 00:00:00 | AR47: 00:00:00 | AT47: 00:00:00 | AX47: =$C47 -> Dimanche | AY47: =$D47 -> 2023-02-19 | BA47: 05:27:00 | BD47: 17 | BE47: =D47 -> 2023-02-19 | BF47: =$C47 -> Dimanche
C49: =PROPER(TEXT(D49,"JJJJ")) -> Lundi | D49: =$D47+1 -> 2023-02-20 | J49: =IF(OR(L47="",L49=""),"",IF(L49>L47,"»",IF(L49<L47,"¼","¹º"))) ->  | P49: =IF(OR(R47="",R49=""),"",IF(R49>R47,"»",IF(R49<R47,"¼","¹º"))) ->  | X49: =$C49 -> Lundi | Y49: =$D49 -> 2023-02-20 | AG49: =$C49 -> Lundi | AH49: =$D49 -> 2023-02-20 | AX49: =$C49 -> Lundi | AY49: =$D49 -> 2023-02-20 | BD49: 18 | BE49: =D49 -> 2023-02-20 | BF49: =$C49 -> Lundi
C51: =PROPER(TEXT(D51,"JJJJ")) -> Mardi | D51: =$D49+1 -> 2023-02-21 | J51: =IF(OR(L49="",L51=""),"",IF(L51>L49,"»",IF(L51<L49,"¼","¹º"))) ->  | P51: =IF(OR(R49="",R51=""),"",IF(R51>R49,"»",IF(R51<R49,"¼","¹º"))) ->  | X51: =$C51 -> Mardi | Y51: =$D51 -> 2023-02-21 | AG51: =$C51 -> Mardi | AH51: =$D51 -> 2023-02-21 | AX51: =$C51 -> Mardi | AY51: =$D51 -> 2023-02-21 | BD51: 19 | BE51: =D51 -> 2023-02-21 | BF51: =$C51 -> Mardi
C53: =PROPER(TEXT(D53,"JJJJ")) -> Mercredi | D53: =$D51+1 -> 2023-02-22 | J53: =IF(OR(L51="",L53=""),"",IF(L53>L51,"»",IF(L53<L51,"¼","¹º"))) ->  | P53: =IF(OR(R51="",R53=""),"",IF(R53>R51,"»",IF(R53<R51,"¼","¹º"))) ->  | X53: =$C53 -> Mercredi | Y53: =$D53 -> 2023-02-22 | AG53: =$C53 -> Mercredi | AH53: =$D53 -> 2023-02-22 | AX53: =$C53 -> Mercredi | AY53: =$D53 -> 2023-02-22 | BD53: 20 | BE53: =D53 -> 2023-02-22 | BF53: =$C53 -> Mercredi
C55: =PROPER(TEXT(D55,"JJJJ")) -> Jeudi | D55: =$D53+1 -> 2023-02-23 | J55: =IF(OR(L53="",L55=""),"",IF(L55>L53,"»",IF(L55<L53,"¼","¹º"))) ->  | P55: =IF(OR(R53="",R55=""),"",IF(R55>R53,"»",IF(R55<R53,"¼","¹º"))) ->  | X55: =$C55 -> Jeudi | Y55: =$D55 -> 2023-02-23 | AG55: =$C55 -> Jeudi | AH55: =$D55 -> 2023-02-23 | AX55: =$C55 -> Jeudi | AY55: =$D55 -> 2023-02-23 | BD55: 21 | BE55: =D55 -> 2023-02-23 | BF55: =$C55 -> Jeudi
C57: =PROPER(TEXT(D57,"JJJJ")) -> Vendredi | D57: =$D55+1 -> 2023-02-24 | J57: =IF(OR(L55="",L57=""),"",IF(L57>L55,"»",IF(L57<L55,"¼","¹º"))) ->  | P57: =IF(OR(N55="",N57=""),"",IF(N57>N55,"»",IF(N57<N55,"¼","¹º"))) ->  | X57: =$C57 -> Vendredi | Y57: =$D57 -> 2023-02-24 | AG57: =$C57 -> Vendredi | AH57: =$D57 -> 2023-02-24 | AX57: =$C57 -> Vendredi | AY57: =$D57 -> 2023-02-24 | BD57: 22 | BE57: =D57 -> 2023-02-24 | BF57: =$C57 -> Vendredi
C59: =PROPER(TEXT(D59,"JJJJ")) -> Samedi | D59: =$D57+1 -> 2023-02-25 | J59: =IF(OR(L57="",L59=""),"",IF(L59>L57,"»",IF(L59<L57,"¼","¹º"))) ->  | P59: =IF(OR(N57="",N59=""),"",IF(N59>N57,"»",IF(N59<N57,"¼","¹º"))) ->  | X59: =$C59 -> Samedi | Y59: =$D59 -> 2023-02-25 | AG59: =$C59 -> Samedi | AH59: =$D59 -> 2023-02-25 | AX59: =$C59 -> Samedi | AY59: =$D59 -> 2023-02-25 | BD59: 23 | BE59: =D59 -> 2023-02-25 | BF59: =$C59 -> Samedi
C61: =PROPER(TEXT(D61,"JJJJ")) -> Dimanche | D61: =$D59+1 -> 2023-02-26 | J61: =IF(OR(L59="",L61=""),"",IF(L61>L59,"»",IF(L61<L59,"¼","¹º"))) ->  | P61: =IF(OR(N59="",N61=""),"",IF(N61>N59,"»",IF(N61<N59,"¼","¹º"))) ->  | X61: =$C61 -> Dimanche | Y61: =$D61 -> 2023-02-26 | AG61: =$C61 -> Dimanche | AH61: =$D61 -> 2023-02-26 | AX61: =$C61 -> Dimanche | AY61: =$D61 -> 2023-02-26 | BD61: 24 | BE61: =D61 -> 2023-02-26 | BF61: =$C61 -> Dimanche
C63: =PROPER(TEXT(D63,"JJJJ")) -> Lundi | D63: =$D61+1 -> 2023-02-27 | J63: =IF(OR(L61="",L63=""),"",IF(L63>L61,"»",IF(L63<L61,"¼","¹º"))) ->  | P63: =IF(OR(N61="",N63=""),"",IF(N63>N61,"»",IF(N63<N61,"¼","¹º"))) ->  | X63: =$C63 -> Lundi | Y63: =$D63 -> 2023-02-27 | AG63: =$C63 -> Lundi | AH63: =$D63 -> 2023-02-27 | AX63: =$C63 -> Lundi | AY63: =$D63 -> 2023-02-27 | BD63: 22 | BE63: =D63 -> 2023-02-27 | BF63: =$C63 -> Lundi
C65: =PROPER(TEXT(D65,"JJJJ")) -> Mardi | D65: =$D63+1 -> 2023-02-28 | J65: =IF(OR(L63="",L65=""),"",IF(L65>L63,"»",IF(L65<L63,"¼","¹º"))) ->  | P65: =IF(OR(N63="",N65=""),"",IF(N65>N63,"»",IF(N65<N63,"¼","¹º"))) ->  | X65: =$C65 -> Mardi | Y65: =$D65 -> 2023-02-28 | AG65: =$C65 -> Mardi | AH65: =$D65 -> 2023-02-28 | AX65: =$C65 -> Mardi | AY65: =$D65 -> 2023-02-28 | BD65: 23 | BE65: =D65 -> 2023-02-28 | BF65: =$C65 -> Mardi
P67: 11.9
F69: 22.3 | H69: 0.5513888889
F71: 17.4 | H71: 0.6618055556 | BI71: J7 | BK71: N7 | BM71: X9 | BO71: AG5 | BQ71: AX5
F73: 19.8 | H73: 0.7340277778 | BO73: =SUM(BO77:BO96) -> 112.2 | BQ73: =SUM(BQ78:BQ96) -> 4.741666667
F75: 16.4 | H75: 0.5965277778 | BH75: T° Mini | BI75: =MIN(BI77:BI96) -> -3.4 | BJ75: T° Maxi | BK75: =MAX(BK77:BK96) -> 15 | BL75: Vent | BM75: =MAX(BM77:BM96) -> 51.5 | BN75: Pluie | BO75: =MAX(BO77:BO99) -> 110.7 | BP75: Soleil | BQ75: =MAX(BQ78:BQ99) -> 4.741666667
F77: 17.1 | H77: 0.6381944444 | N77: Web cam | BH77: Janvier | BI77: -3.2 | BJ77: =BH77 -> Janvier | BK77: 15 | BL77: =BH77 -> Janvier | BM77: 51.5 | BN77: =BH77 -> Janvier | BO77: 110.7 | BP77: =BH77 -> Janvier | BQ77: 4.516666667
C78: https://pv.viewsurf.com/2094/La-Tranche-sur-mer-Embarcadere?i=NzYxMDp1bmRlZmluZWQ | BH78: Février | BI78: =$L$7 -> -3.4 | BJ78: =BH78 -> Février | BK78: =$R$7 -> 13.8 | BL78: =BH78 -> Février | BM78: =$AA$9 -> 38.2 | BN78: =BH78 -> Février | BO78: =$AJ$1 -> 1.5 | BP78: =BH78 -> Février | BQ78: =$BA$5 -> 4.741666667
F79: 18.3 | H79: 0.5548611111 | BH79: Mars | BJ79: =BH79 -> Mars | BL79: =BH79 -> Mars | BN79: =BH79 -> Mars | BP79: =BH79 -> Mars
C80: https://pv.viewsurf.com/2010/La-Tranche-sur-mer-Plage-de-la-Terriere?i=NzM2NDp1bmRlZmluZWQ | BH80: Avril | BJ80: Avril | BL80: Avril | BN80: Avril | BP80: Avril
F81: 17.5 | H81: 0.1916666667 | BH81: Mai | BJ81: =BH81 -> Mai | BL81: =BH81 -> Mai | BN81: =BH81 -> Mai | BP81: =BH81 -> Mai
BH82: Juin | BJ82: =BH82 -> Juin | BL82: =BH82 -> Juin | BN82: =BH82 -> Juin | BP82: =BH82 -> Juin
F83: 16.8 | H83: 0.6006944444 | BH83: Juillet | BJ83: Juillet | BL83: Juillet | BN83: Juillet | BP83: Juillet
BH84: Aout | BJ84: Aout | BL84: Aout | BN84: Aout | BP84: Aout
F85: 15.9 | H85: 0.5493055556 | BH85: Septembre | BJ85: =BH85 -> Septembre | BL85: =BH85 -> Septembre | BN85: =BH85 -> Septembre | BP85: =BH85 -> Septembre
BH86: Octobre | BJ86: =BH86 -> Octobre | BL86: =BH86 -> Octobre | BN86: =BH86 -> Octobre | BP86: =BH86 -> Octobre
F87: 16.5 | H87: 0.6479166667 | BH87: Novembre | BJ87: =BH87 -> Novembre | BL87: =BH87 -> Novembre | BN87: =BH87 -> Novembre | BP87: =BH87 -> Novembre
BH88: Novembre | BJ88: =BH88 -> Novembre | BL88: =BH88 -> Novembre | BN88: =BH88 -> Novembre | BP88: =BH88 -> Novembre
F89: 16.5 | H89: 0.6479166667
F91: 18.5 | H91: 0.6902777778
F93: 17.7 | H93: 0.6006944444
F95: 16.2 | H95: 0.31875
F97: 16.2 | H97: 0.31875
F99: 17.7 | H99: 0.5722222222
F101: 16.7 | H101: 0.7770833333
F103: 15.7 | H103: 0.5125
F105: 14.5 | H105: 0.5958333333
F107: 12.2 | H107: 0.6256944444
F109: 14.1 | H109: 0.5680555556
F111: 15.2 | H111: 0.4736111111
F113: 13.7 | H113: 0.5222222222
F115: 15 | H115: 0.5541666667
F117: 15.2 | H117: 0.5263888889
F119: 14.8 | H119: 0.5861111111
F121: 12.8 | H121: 0.5423611111
F123: 13.3 | H123: 0.7680555556
F125: 13.4 | H125: 0.4993055556
F127: 13.3 | H127: 0.5583333333
F129: 9.2 | H129: 0.6354166667
F131: 6.7 | H131: 0.5486111111
F133: 6.4 | H133: 0.6354166667
F135: 5.1 | H135: 0.6520833333
F137: 0
F139: 6.7 | H139: 0.5854166667
F141: 6.7 | H141: 0.5854166667
F143: 6.7 | H143: 0.5854166667
F145: 8.2 | H145: 0.6319444444
F147: 5.8 | H147: 0.5805555556
F149: 7.5 | H149: 0.5625
F151: 3.8 | H151: 0.6173611111
F153: 4.9
F155: 4.8 | H155: 0.6381944444
F157: 4.2 | H157: 0.5826388889
F159: 3 | H159: 0.69375
F161: 5.5 | H161: 0.9909722222
F163: 13.4 | H163: 0.6340277778
F165: 4.8 | H165: 0.5423611111
F167: 5.7 | H167: 0.6090277778
F169: 2.4 | H169: 0.6277777778
F171: 9.3 | H171: 0.7756944444
F173: 11.7 | H173: 0.7215277778
F175: 12.5 | H175: 0.6736111111
F177: 12.6 | H177: 0.58125
F179: 13.1 | H179: 0.7347222222
F181: 13.3 | H181: 0.3576388889
F183: 11.6 | H183: 0.7347222222
F185: 13.5 | H185: 0.6291666667
F187: 12 | H187: 0.6319444444
F189: 12 | H189: 0.6319444444
F191: 10.8 | H191: 0.9895833333
F193: 12.7 | H193: 0.7090277778
F195: 12.7 | H195: 0.7090277778
F197: 11.9 | H197: 0.03125
F199: 14.4 | H199: 0.8979166667
F201: 14.9 | H201: 0.8916666667
F203: 15 | H203: 0.6805555556
F205: 6.2 | H205: 0.6055555556
F207: 1.8 | H207: 0.5333333333
F209: 3.7 | H209: 0.6201388889
F211: 3.7 | H211: 0.5833333333
F213: 3.5 | H213: 0.64375
F215: 7.1 | H215: 0.7041666667
F217: 6.8 | H217: 0.6166666667
F219: 7
F221: 5.3
F223: 8.3 | H223: 0.99375
F225: 10.5 | H225: 0.5916666667
F227: 11 | H227: 0.5395833333
F229: 9.7 | H229: 0.6666666667
F231: 10.3 | H231: 0.6118055556
F233: 12.5 | H233: 0.6027777778
F235: 8.9 | H235: 0.6548611111
F237: 7.7 | H237: 0.6236111111
F239: 10.7 | H239: 0.6194444444
F241: 8.4 | H241: 0.6291666667
F243: 10.8 | H243: 0.6402777778
F245: 12.5 | H245: 0.6284722222
F247: 11.8 | H247: 0.7104166667
F249: 12.9 | H249: 0.6423611111
F251: 12.9 | H251: 0.6423611111
F253: 12.6 | H253: 0.5694444444
F255: 13.8 | H255: 0.6131944444
F257: 12.1 | H257: 0.4833333333
F259: 12.1 | H259: 0.4833333333
F261: 13.6 | H261: 0.64375

Sheet MINI-MAXI
A1: =Février_2023!C5 -> Février_2023
F2: =NOW() -> 2023-02-20T13:42:13.900
D3: Pluie Maxi Jour et total mois | G3: Températures Mini et Maxi | I3: =I1-940 -> -940
F4: Vent maxi | I4: 3
I5: =I2-I3-I4 -> 937
A6: Jour | B6: Mois | D6: __200
D7: __180 | E7: =INDIRECT($A$1&"!$W9") -> 00:00:00 | I7: =Février_2023!L7 -> -3.4
D8: __160 | E8: 132 | I8: 145
A9: =INDIRECT($A$1&"!$AG5") -> Mise à jour | D9: __140 | E9: =INDIRECT($A$1&"!$X$9") -> Vitesse du vent | I9: =I7-940 -> -943.4
A10: 200 | B10: 200 | D10: __120 | E10: 2 | I10: 3
A11: =100*(1-(A9/A10)) ->  | B11: =100*(1-(B9/B10)) -> 100 | D11: __100 | E11: =E8-E9-E10 ->  | I11: =I8-I9-I10 -> 1085.4
A12: =20*A11/100 ->  | B12: =20*B11/100 -> 20 | D12: __80 | F12: Soleil maxi
A13: 17 | B13: 28 | D13: __60
A14: =(A10/100)*(1+(2*A10/100))/2 -> 5 | B14: =(B10/100)*(1+(2*B10/100))/2 -> 5 | D14: __40 | I14: 22:00:00
D15: _20 | I15: 00:00:00
A16: =INDIRECT($A1&"!$AG9") -> 112.2 | I16: =Février_2023!$BA$9 -> 09:11:00
A17: =INDIRECT($A$1&"!$AG9") -> 112.2 | I17: =I14-I16 -> 12:49:00
G21: =Février_2023!N7 -> 2023-02-09 | H21: =Février_2023!T7 -> 2023-02-16

Sheet MOIS
A1: =Février_2023!C5 -> Février_2023
B3: Jours de pluie + de 2mm | E3: Jours de soleil + de 4h
A9: 31 | D9: 31 | F9: 31
A10: 0 | D10: 0 | F10: 0
A11: =C51 -> 0 | D11: =C50 -> 0 | F11: =C58 -> 
A12: =A9-A10-A11 -> 31 | D12: =D9-D10-D11 -> 31 | F12: =F9-F10-F11 -> 
B21: =NOW() -> 2023-02-20T13:42:13.900
B23: Heures de pluie | E23: Heures de soleil
A29: 2.5 | D29: 22.08333333
A30: 00:00:00 | D30: 00:00:00 | F30: 22.08333333
A31: =B48 -> 0.01972685185 | D31: =C48 -> 4.741666667 | F31: 00:00:00
A32: =A29-A31 -> 2.480273148 | D32: =D29-D31 -> 17.34166667 | F32: =C56 -> 
F33: =F30-F32 -> 
E44: Vent fort au-dessus de
E45: 50km/h
B46: Heures Pluie | C46: H de soleil
A48: Total | B48: =Février_2023!AL5 -> 0.01972685185 | C48: =Février_2023!BA5 -> 4.741666667
B49: Jours de pluie
A50: Soleil | C50: =COUNTIF(INDIRECT($A$1&"!$AX11:$AX71"),">4:00") -> 0
A51: Pluie | C51: =COUNTIF(INDIRECT($A$1&"!$Ai11:$Ai71"),">4:00") -> 0 | G51: 31
G52: 0
A53: Nb | G53: =C59 -> 
G54: =G51-G52-G53 -> 
A55: Vent
A56: Nb d'heures < 1.1 km/h | C56: =Février_2023!#REF! -> 
A57: Nb de jours plus petit que 20km/h | C57: =SUM(#REF!) -> 
A58: Nb de jours entre 20 et 50 km/h | C58: =SUM(#REF!) -> 
A59: Nb de jours plus grand que 50km/h | C59: =SUM(#REF!) -> 

Sheet CONSOLE
B1: https://marine.meteoconsult.fr/meteo-marine/horaires-maree-la-tranche-sur-mer-1083-0.php
D2: Conditions | F2: Ensoleillé
B3: *Les relevés correspondent à l'heure de la mise à jour*
B4: Températures Humidité de l'air Vitesse du vent Chaleur solaire = T°+2° | F4: Marée Haute | G4: 0.2 | H4: Manuel
F5: Marée basse | G5: 0.4479166667 | H5: "
F6: Coéfficient | G6: 100 | H6: "
F8: Marée Haute | G8: 0.7201388889 | H8: Manuel
F9: Marée basse | G9: 0.9631944444 | H9: "
F10: Coéfficient | G10: 105 | H10: "
F12: T° de l'eau | G12: 8 | H12: Manuel
B13: Petite Pluie
B14: Température ressentie : levé et couché du soleil : | G14: Soleil
B15: Dernière mise à jour : Vent en rafale : | F15: Heures soleil | G15: =G17-G16 -> 10:37:00
B16: Vent moyen : | F16: Levé | G16: 08:01:00 | H16: Manuel
B17: Pôle culturel des Floralies Statistiques | F17: Couché | G17: 18:38:00 | H17: "
F19: T° extérieure | G19: =INDIRECT("RELEVÉS!B" & COUNT(RELEVÉS!B:B) + 6,TRUE) -> 12.2 | H19: Auto
F20: Vent console | G20: =RELEVÉS!E7 -> 8.6 | H20: "
F21: Soleil | G21: =RELEVÉS!AV3 -> 0.1986111111 | H21: "
F22: Vent rafale | G22: =RELEVÉS!N5 -> 13.1 | H22: "
F24: H% du sol | G24: 0.29 | H24: Manuel
F26: Vent moyen | G26: =RELEVÉS!U5+5 -> 6.40392638 | H26: Auto
F27: Humidité | G27: =100-H27 -> 23 | H27: =INDIRECT("RELEVÉS!C" & COUNT(RELEVÉS!C:C) + 6,TRUE) -> 77 | I27: Autto
F28: T° ressentie | G28: =INDIRECT("RELEVÉS!D" & COUNT(RELEVÉS!D:D) + 6,TRUE) -> 12.2 | H28: Auto
B29: Haute Matinée Basse de l'eau Haute Après-midi Basse Humidité du sol à 20cm de la surface | F29: Site | G29: http://meteofloralies.free.fr
B34: =NOW() -> 2023-02-20T13:42:13.900
C35: Météo + Température de l'eau------> | G35: 18
E36: Site | F36: http://meteofloralies.free.fr
C37: Prévisions | F37: https://www.lachainemeteo.com/meteo-france/previsions-meteo-france-aujourdhui

Sheet GRAPHIQUES
C1: Dernière mise à jour le : | F1: =NOW() -> 2023-02-20T13:42:13.900
G2: ² | I2: Température Mini et Maxi extérieure
C3: Température extérieure
F4: ²
C5: Précipitations Humidité Mini … à Maxi … à | I5: Précipitations
C9: Vitesse du vent de la journée
I10: Vitesse du vent
C11: Vitesse du vent
I16: Nombre d'heures de soleil
C18: Chaleur solaire
C25: Luminosité
